{"text_format":"1","workbook":"xlsx","n_sheets":7,"sheets":["Questions","Input Evaluation of Conditions","Feasibility of Mitigation Msrs","_configuration","_scoring","_calculation","_changelog"],"not_rendered":{"charts":0,"images":0,"macros":1,"external_links":0,"defined_names":3,"comments":1,"pivot_tables":0},"unopened":[],"bounds":{"document_bytes":16777216,"sheet_cells":100000,"rows_first":2000,"rows_last":500,"rows_between":2000,"halvings":0,"cell_chars":16384,"cell_head_chars":4096},"cells_cut":0,"cells_raw":0,"read":"whole","date_system":"1900"}

{"sheet":"Questions","index":0,"n_rows":5,"n_cols":6,"rows_kept":5,"cut":false,"hidden":false,"merged":[]}
[null,"Question 1 of 16",null,"Votre réponse",null,"stored answer value"]
[1,{"$f":"VLOOKUP($A2,_configuration!$A$3:B34,2)","v":"Des pesticides de remplacement ou des options de lutte contre les ravageurs sont disponibles contre les ravageurs pour lesquels le pesticide devrait être homologué."},null,null,null,{"$f":"IF(ISBLANK(VLOOKUP($A2,'Input Evaluation of Conditions'!$A$2:$C$32,3)),\"\",VLOOKUP($A2,'Input Evaluation of Conditions'!$A$2:$C$32,3))","v":""}]
[]
[null,{"$f":"_configuration!B1","v":"Risques pour les pollinisateurs"}]
[null,"version : 27/06/2017"]

{"sheet":"Input Evaluation of Conditions","index":1,"n_rows":34,"n_cols":6,"rows_kept":34,"cut":false,"hidden":false,"merged":[]}
[null,{"$f":"_configuration!B1","v":"Risques pour les pollinisateurs"}]
[null,"Conditions préalables pour l’atténuation des risques",">> entrez ici <<",null,"Options"]
[1,{"$f":"IF(ISBLANK(_configuration!B3),\"\",_configuration!B3)&\" \"&IF(_configuration!C3=-1,\"*\",\"\")","v":"Des pesticides de remplacement ou des options de lutte contre les ravageurs sont disponibles contre les ravageurs pour lesquels le pesticide devrait être homologué. "},null,null,-1,"FAUX – la condition préalable n’est pas satisfaite dans le pays"]
[2,{"$f":"IF(ISBLANK(_configuration!B4),\"\",_configuration!B4)&\" \"&IF(_configuration!C4=-1,\"*\",\"\")","v":"La dose d’application du pesticide peut être réduite sans réduire l’efficacité du pesticide. "},null,null,0,"Non applicable"]
[3,{"$f":"IF(ISBLANK(_configuration!B5),\"\",_configuration!B5)&\" \"&IF(_configuration!C5=-1,\"*\",\"\")","v":"La fréquence de l’application peut être réduite, ou l’intervalle de traitement augmenté, sans réduire l’efficacité du pesticide. "},null,null,1,"PAS SÛR – la condition préalable est peut-être/parfois satisfaite dans le pays"]
[4,{"$f":"IF(ISBLANK(_configuration!B6),\"\",_configuration!B6)&\" \"&IF(_configuration!C6=-1,\"*\",\"\")","v":"Des types de préparation du même pesticide à moindre risque sont suffisamment efficaces contre le(s) ravageur(s) ciblé(s). "},null,null,2,"VRAI – la condition préalable est satisfaite dans le pays"]
[5,{"$f":"IF(ISBLANK(_configuration!B7),\"\",_configuration!B7)&\" \"&IF(_configuration!C7=-1,\"*\",\"\")","v":"Le pesticide n’est pas systémique. "}]
[6,{"$f":"IF(ISBLANK(_configuration!B8),\"\",_configuration!B8)&\" \"&IF(_configuration!C8=-1,\"*\",\"\")","v":"Pour les semences traitées: des enrobages des semences de haute qualité réduisant l’abrasion des semences sont disponibles. "}]
[7,{"$f":"IF(ISBLANK(_configuration!B9),\"\",_configuration!B9)&\" \"&IF(_configuration!C9=-1,\"*\",\"\")","v":"Le pesticide sera homologué pour des applications entraînant une exposition faible ou nulle pour les abeilles, telles que dans les serres, les entrepôts ou les conteneurs. "}]
[8,{"$f":"IF(ISBLANK(_configuration!B10),\"\",_configuration!B10)&\" \"&IF(_configuration!C10=-1,\"*\",\"\")","v":"Le ravageur cible n’est pas présent pendant la floraison de la culture (ou la floraison des mauvaises herbes dans les cultures). "}]
[9,{"$f":"IF(ISBLANK(_configuration!B11),\"\",_configuration!B11)&\" \"&IF(_configuration!C11=-1,\"*\",\"\")","v":"Le pesticide se dégrade rapidement dans la culture/végétation (c.-à-d. RT25 < 8 heures: RT25=temps résiduel du pesticide à 25% de mortalité). "}]
[10,{"$f":"IF(ISBLANK(_configuration!B12),\"\",_configuration!B12)&\" \"&IF(_configuration!C12=-1,\"*\",\"\")","v":"Un équipement réduisant la dérive (p.ex. buses limitant la dérive, déflecteurs de pulvérisation) est disponible pour les agriculteurs et il est abordable. "}]
[11,{"$f":"IF(ISBLANK(_configuration!B13),\"\",_configuration!B13)&\" \"&IF(_configuration!C13=-1,\"*\",\"\")","v":"En plus de l’application par épandage aérien, le ravageur cible peut également être traité par épandage terrestre. "}]
[12,{"$f":"IF(ISBLANK(_configuration!B14),\"\",_configuration!B14)&\" \"&IF(_configuration!C14=-1,\"*\",\"\")","v":"Un équipement de forage pour les pesticides granulés et les semences traitées est disponible pour les agriculteurs et il est abordable. "}]
[13,{"$f":"IF(ISBLANK(_configuration!B15),\"\",_configuration!B15)&\" \"&IF(_configuration!C15=-1,\"*\",\"\")","v":"Les abeilles mellifères et les abeilles sauvages ne sont pas actives dans les cultures à traiter avec le pesticide mais elles le sont hors champ. "}]
[14,{"$f":"IF(ISBLANK(_configuration!B16),\"\",_configuration!B16)&\" \"&IF(_configuration!C16=-1,\"*\",\"\")","v":"Les champs sont suffisamment grands et donc l’introduction d’une bande tampon de non-pulvérisation n’aura pas d’effet inacceptable sur le rendement. "}]
[15,{"$f":"IF(ISBLANK(_configuration!B17),\"\",_configuration!B17)&\" \"&IF(_configuration!C17=-1,\"*\",\"\")","v":"Les utilisateurs de pesticides sont alphabétisés, ou peuvent demander à une personne alphabétisée dans leurs environs de leur lire l’étiquette du pesticide. "}]
[16,{"$f":"IF(ISBLANK(_configuration!B18),\"\",_configuration!B18)&\" \"&IF(_configuration!C18=-1,\"*\",\"\")","v":"Les apiculteurs peuvent être efficacement informés à l’avance sur les traitements pesti-cides dans leurs environs. "}]
[17,{"$f":"IF(ISBLANK(_configuration!B19),\"\",_configuration!B19)&\" \"&IF(_configuration!C19=-1,\"*\",\"\")","v":" "}]
[18,{"$f":"IF(ISBLANK(_configuration!B20),\"\",_configuration!B20)&\" \"&IF(_configuration!C20=-1,\"*\",\"\")","v":" "}]
[19,{"$f":"IF(ISBLANK(_configuration!B21),\"\",_configuration!B21)&\" \"&IF(_configuration!C21=-1,\"*\",\"\")","v":" "}]
[20,{"$f":"IF(ISBLANK(_configuration!B22),\"\",_configuration!B22)&\" \"&IF(_configuration!C22=-1,\"*\",\"\")","v":" "}]
[21,{"$f":"IF(ISBLANK(_configuration!B23),\"\",_configuration!B23)&\" \"&IF(_configuration!C23=-1,\"*\",\"\")","v":" "}]
[22,{"$f":"IF(ISBLANK(_configuration!B24),\"\",_configuration!B24)&\" \"&IF(_configuration!C24=-1,\"*\",\"\")","v":" "}]
[23,{"$f":"IF(ISBLANK(_configuration!B25),\"\",_configuration!B25)&\" \"&IF(_configuration!C25=-1,\"*\",\"\")","v":" "}]
[24,{"$f":"IF(ISBLANK(_configuration!B26),\"\",_configuration!B26)&\" \"&IF(_configuration!C26=-1,\"*\",\"\")","v":" "}]
[25,{"$f":"IF(ISBLANK(_configuration!B27),\"\",_configuration!B27)&\" \"&IF(_configuration!C27=-1,\"*\",\"\")","v":" "}]
[26,{"$f":"IF(ISBLANK(_configuration!B28),\"\",_configuration!B28)&\" \"&IF(_configuration!C28=-1,\"*\",\"\")","v":" "}]
[27,{"$f":"IF(ISBLANK(_configuration!B29),\"\",_configuration!B29)&\" \"&IF(_configuration!C29=-1,\"*\",\"\")","v":" "}]
[28,{"$f":"IF(ISBLANK(_configuration!B30),\"\",_configuration!B30)&\" \"&IF(_configuration!C30=-1,\"*\",\"\")","v":" "}]
[29,{"$f":"IF(ISBLANK(_configuration!B31),\"\",_configuration!B31)&\" \"&IF(_configuration!C31=-1,\"*\",\"\")","v":" "}]
[30,{"$f":"IF(ISBLANK(_configuration!B32),\"\",_configuration!B32)&\" \"&IF(_configuration!C32=-1,\"*\",\"\")","v":" "}]
[null,{"$f":"IF(ISBLANK(_configuration!B33),\"\",_configuration!B33)&\" \"&IF(_configuration!C33=-1,\"*\",\"\")","v":"end of data = 30 conditions "}]
[null,"* denotes a  negative statement"]

{"sheet":"Feasibility of Mitigation Msrs","index":2,"n_rows":28,"n_cols":4,"rows_kept":28,"cut":false,"hidden":false,"merged":[]}
[{"$f":"_configuration!B1","v":"Risques pour les pollinisateurs"}]
["Légende","result","#","Mesures d’atténuation des risques"]
["La mesure n'est pas faisable",{"$f":"_calculation!D$1","v":0},1,{"$f":"IF(_calculation!D$3=0,\"\",_calculation!D$3)","v":"N’homologuez pas le pesticide (ou supprimez progressivement un pesticide homologué) pour certaines ou toutes les utilisations"}]
["La mesure ne s'applique pas",{"$f":"_calculation!E$1","v":0},2,{"$f":"IF(_calculation!E$3=0,\"\",_calculation!E$3)","v":"Réduisez la dose d’application"}]
["La mesure pourrait être possible",{"$f":"_calculation!F$1","v":0},3,{"$f":"IF(_calculation!F$3=0,\"\",_calculation!F$3)","v":"Réduisez la fréquences des applications et/ou augmentez l’intervalle de traitement"}]
["La mesure est faisable",{"$f":"_calculation!G$1","v":0},4,{"$f":"IF(_calculation!G$3=0,\"\",_calculation!G$3)","v":"Limitez l’utilisation à des types de préparation qui entraînent une moindre exposition pour les abeilles (p.ex. préparations à libération lente, appâts, enrobages des semences, gra-nules)"}]
[null,{"$f":"_calculation!H$1","v":0},5,{"$f":"IF(_calculation!H$3=0,\"\",_calculation!H$3)","v":"Pour les semences traitées: requérez des enrobages des semences de haute qualité afin de réduire l’abrasion des semences et la dérive ultérieure de poussière pendant le forage."}]
[null,{"$f":"_calculation!I$1","v":0},6,{"$f":"IF(_calculation!I$3=0,\"\",_calculation!I$3)","v":"Limitez l’utilisation à des applications à faibles ou nulles émissions (p.ex. serres, entrepôts, conteneurs)"}]
[null,{"$f":"_calculation!J$1","v":0},7,{"$f":"IF(_calculation!J$3=0,\"\",_calculation!J$3)","v":"Changez les périodes d’application (p.ex. ne l’appliquez pas pendant la floraison des cultures ou la floraison des mauvaises herbes dans les cultures)"}]
[null,{"$f":"_calculation!K$1","v":0},8,{"$f":"IF(_calculation!K$3=0,\"\",_calculation!K$3)","v":"Changez la période d’application (p.ex. ne l’appliquez que le soir, quand les abeilles ne sont pas actives, pour permettre au dépôt du pesticide de se dégrader)"}]
[null,{"$f":"_calculation!L$1","v":0},9,{"$f":"IF(_calculation!L$3=0,\"\",_calculation!L$3)","v":"Appliquez des techniques réduisant la dérive (p.ex. buses anti-dérive, déflecteurs de pulvé-risation)"}]
[null,{"$f":"_calculation!M$1","v":0},10,{"$f":"IF(_calculation!M$3=0,\"\",_calculation!M$3)","v":"N’autorisez pas l’épandage aérien"}]
[null,{"$f":"_calculation!N$1","v":0},11,{"$f":"IF(_calculation!N$3=0,\"\",_calculation!N$3)","v":"Pour les pesticides granulés et les semences traitées: exigez un équipement de forage de haute qualité afin de réduire l’abrasion des semences ou des granulés et la dérive ultérieure de poussière pendant le forage"}]
[null,{"$f":"_calculation!O$1","v":0},12,{"$f":"IF(_calculation!O$3=0,\"\",_calculation!O$3)","v":"Appliquez une bande tampon ( de végétation ) de non pulvérisation entre les champs traités et la zone hors champ afin de réduire la dérive"}]
[null,{"$f":"_calculation!P$1","v":0},13,{"$f":"IF(_calculation!P$3=0,\"\",_calculation!P$3)","v":"Exigez des conseils de prudence spécifiques sur l’étiquette "}]
[null,{"$f":"_calculation!Q$1","v":0},14,{"$f":"IF(_calculation!Q$3=0,\"\",_calculation!Q$3)","v":"Exigez une notification préalable aux apiculteurs pour leur permettre de déplacer ou de fermer les ruches"}]
[null,{"$f":"_calculation!R$1","v":0},15,{"$f":"IF(_calculation!R$3=0,\"\",_calculation!R$3)","v":""}]
[null,{"$f":"_calculation!S$1","v":0},16,{"$f":"IF(_calculation!S$3=0,\"\",_calculation!S$3)","v":""}]
[null,{"$f":"_calculation!T$1","v":0},17,{"$f":"IF(_calculation!T$3=0,\"\",_calculation!T$3)","v":""}]
[null,{"$f":"_calculation!U$1","v":0},18,{"$f":"IF(_calculation!U$3=0,\"\",_calculation!U$3)","v":""}]
[null,{"$f":"_calculation!V$1","v":0},19,{"$f":"IF(_calculation!V$3=0,\"\",_calculation!V$3)","v":""}]
[null,{"$f":"_calculation!W$1","v":0},20,{"$f":"IF(_calculation!W$3=0,\"\",_calculation!W$3)","v":""}]
[null,{"$f":"_calculation!X$1","v":0},21,{"$f":"IF(_calculation!X$3=0,\"\",_calculation!X$3)","v":""}]
[null,{"$f":"_calculation!Y$1","v":0},22,{"$f":"IF(_calculation!Y$3=0,\"\",_calculation!Y$3)","v":""}]
[null,{"$f":"_calculation!Z$1","v":0},23,{"$f":"IF(_calculation!Z$3=0,\"\",_calculation!Z$3)","v":""}]
[null,{"$f":"_calculation!AA$1","v":0},24,{"$f":"IF(_calculation!AA$3=0,\"\",_calculation!AA$3)","v":""}]
[null,{"$f":"_calculation!AB$1","v":0},25,{"$f":"IF(_calculation!AB$3=0,\"\",_calculation!AB$3)","v":""}]
[{"$f":"IF(_calculation!X$3=0,\"\",_calculation!X$3)","v":""},{"$f":"IF(_calculation!Y$3=0,\"\",_calculation!Y$3)","v":""},"",{"$f":"IF(_calculation!Z$3=0,\"\",_calculation!Z$3)","v":""}]

{"sheet":"_configuration","index":3,"n_rows":33,"n_cols":29,"rows_kept":33,"cut":false,"hidden":false,"merged":[]}
["titre:","Risques pour les pollinisateurs","#",1,2,3,4,5,6,7,8,9,10,11,12,13,14,15,16,17,18,19,20,21,22,23,24,25]
["condition #","↓ Conditions (max 30) x Mesures de mitigation du risque (max 25) →",null,"N’homologuez pas le pesticide (ou supprimez progressivement un pesticide homologué) pour certaines ou toutes les utilisations","Réduisez la dose d’application","Réduisez la fréquences des applications et/ou augmentez l’intervalle de traitement","Limitez l’utilisation à des types de préparation qui entraînent une moindre exposition pour les abeilles (p.ex. préparations à libération lente, appâts, enrobages des semences, gra-nules)","Pour les semences traitées: requérez des enrobages des semences de haute qualité afin de réduire l’abrasion des semences et la dérive ultérieure de poussière pendant le forage.","Limitez l’utilisation à des applications à faibles ou nulles émissions (p.ex. serres, entrepôts, conteneurs)","Changez les périodes d’application (p.ex. ne l’appliquez pas pendant la floraison des cultures ou la floraison des mauvaises herbes dans les cultures)","Changez la période d’application (p.ex. ne l’appliquez que le soir, quand les abeilles ne sont pas actives, pour permettre au dépôt du pesticide de se dégrader)","Appliquez des techniques réduisant la dérive (p.ex. buses anti-dérive, déflecteurs de pulvé-risation)","N’autorisez pas l’épandage aérien","Pour les pesticides granulés et les semences traitées: exigez un équipement de forage de haute qualité afin de réduire l’abrasion des semences ou des granulés et la dérive ultérieure de poussière pendant le forage","Appliquez une bande tampon ( de végétation ) de non pulvérisation entre les champs traités et la zone hors champ afin de réduire la dérive","Exigez des conseils de prudence spécifiques sur l’étiquette ","Exigez une notification préalable aux apiculteurs pour leur permettre de déplacer ou de fermer les ruches",null,null,null,null,null,null,null,null,null,null,null,"End of data = 25 measures"]
[{"$f":"IF(ISBLANK(B3),\"\",1)","v":1},"Des pesticides de remplacement ou des options de lutte contre les ravageurs sont disponibles contre les ravageurs pour lesquels le pesticide devrait être homologué.",1,1]
[{"$f":"IF(ISBLANK(B4),\"\",A3+1)","v":2},"La dose d’application du pesticide peut être réduite sans réduire l’efficacité du pesticide.",1,null,2]
[{"$f":"IF(ISBLANK(B5),\"\",A4+1)","v":3},"La fréquence de l’application peut être réduite, ou l’intervalle de traitement augmenté, sans réduire l’efficacité du pesticide.",1,null,null,2]
[4,"Des types de préparation du même pesticide à moindre risque sont suffisamment efficaces contre le(s) ravageur(s) ciblé(s).",1,null,null,null,2]
[5,"Le pesticide n’est pas systémique.",1,null,null,null,1,null,null,1,1]
[6,"Pour les semences traitées: des enrobages des semences de haute qualité réduisant l’abrasion des semences sont disponibles.",1,null,null,null,null,2]
[7,"Le pesticide sera homologué pour des applications entraînant une exposition faible ou nulle pour les abeilles, telles que dans les serres, les entrepôts ou les conteneurs.",1,null,null,null,null,null,2]
[8,"Le ravageur cible n’est pas présent pendant la floraison de la culture (ou la floraison des mauvaises herbes dans les cultures).",1,null,null,null,null,null,null,2]
[9,"Le pesticide se dégrade rapidement dans la culture/végétation (c.-à-d. RT25 < 8 heures: RT25=temps résiduel du pesticide à 25% de mortalité).",1,null,null,null,null,null,null,null,2]
[10,"Un équipement réduisant la dérive (p.ex. buses limitant la dérive, déflecteurs de pulvérisation) est disponible pour les agriculteurs et il est abordable.",1,null,null,null,null,null,null,null,null,2]
[11,"En plus de l’application par épandage aérien, le ravageur cible peut également être traité par épandage terrestre.",1,null,null,null,null,null,null,null,null,null,1]
[12,"Un équipement de forage pour les pesticides granulés et les semences traitées est disponible pour les agriculteurs et il est abordable.",1,null,null,null,null,null,null,null,null,null,null,2]
[13,"Les abeilles mellifères et les abeilles sauvages ne sont pas actives dans les cultures à traiter avec le pesticide mais elles le sont hors champ.",1,null,null,null,null,null,null,null,null,null,null,null,1]
[14,"Les champs sont suffisamment grands et donc l’introduction d’une bande tampon de non-pulvérisation n’aura pas d’effet inacceptable sur le rendement.",1,null,null,null,null,null,null,null,null,null,null,null,1]
[15,"Les utilisateurs de pesticides sont alphabétisés, ou peuvent demander à une personne alphabétisée dans leurs environs de leur lire l’étiquette du pesticide.",1,null,null,null,null,null,null,null,null,null,null,null,null,2]
[16,"Les apiculteurs peuvent être efficacement informés à l’avance sur les traitements pesti-cides dans leurs environs.",1,null,null,null,null,null,null,null,null,null,null,null,null,null,1]
["",null,1]
["",null,1]
["",null,1]
["",null,1]
["",null,1]
["",null,1]
["",null,1]
["",null,1]
["",null,1]
["",null,1]
["",null,1]
["",null,1]
["",null,1]
["",null,1]
[null,"end of data = 30 conditions"]

{"sheet":"_scoring","index":4,"n_rows":19,"n_cols":11,"rows_kept":19,"cut":false,"hidden":false,"merged":[]}
[null,"SCORING LOGIC BASED ON CONDITIONALITY AND WEIGHT"]
[null,null,null,"Irrelevant condition","Relevant condition","Essential condition"]
[null,null,"Conditionality",0,1,2,"< Weight"]
[null,"No answer",99,0,0,0]
[null,false,-1,0,-1,-1]
[null,"NA",0,0,0,-1]
[null,"MAYBE",1,0,1,-1]
[null,true,2,0,2,2]
[]
[]
[null,"LEGEND"]
[]
[null,"CONDITIONALITY",null,null,null,"WEIGHT",null,null,null,"FEASIBILITY SCORE"]
[null,-1,"Condition statement is FALSE",null,null,null,"Irrelevant condition",null,null,-1,"Measure not feasible"]
[null,0,"Condition is NOT APPLICABLE",null,null,0,"Irrelevant condition",null,null,0,"Measure not applicable"]
[null,1,"Condition MAYBE possible",null,null,1,"Relevant condition",null,null,1,"Measure maybe feasible"]
[null,2,"Condition statement is TRUE",null,null,2,"Essential condition",null,null,2,"Measure feasible"]
[]
[null,null,"no answer"]

{"sheet":"_calculation","index":5,"n_rows":34,"n_cols":29,"rows_kept":34,"cut":false,"hidden":false,"merged":[]}
[null,null,"Overall feasibility score",{"$f":"MIN(IF(D4:D33<>0,D4:D33))","v":0},{"$f":"MIN(IF(E4:E33<>0,E4:E33))","v":0},{"$f":"MIN(IF(F4:F33<>0,F4:F33))","v":0},{"$f":"MIN(IF(G4:G33<>0,G4:G33))","v":0},{"$f":"MIN(IF(H4:H33<>0,H4:H33))","v":0},{"$f":"MIN(IF(I4:I33<>0,I4:I33))","v":0},{"$f":"MIN(IF(J4:J33<>0,J4:J33))","v":0},{"$f":"MIN(IF(K4:K33<>0,K4:K33))","v":0},{"$f":"MIN(IF(L4:L33<>0,L4:L33))","v":0},{"$f":"MIN(IF(M4:M33<>0,M4:M33))","v":0},{"$f":"MIN(IF(N4:N33<>0,N4:N33))","v":0},{"$f":"MIN(IF(O4:O33<>0,O4:O33))","v":0},{"$f":"MIN(IF(P4:P33<>0,P4:P33))","v":0},{"$f":"MIN(IF(Q4:Q33<>0,Q4:Q33))","v":0},{"$f":"MIN(IF(R4:R33<>0,R4:R33))","v":0},{"$f":"MIN(IF(S4:S33<>0,S4:S33))","v":0},{"$f":"MIN(IF(T4:T33<>0,T4:T33))","v":0},{"$f":"MIN(IF(U4:U33<>0,U4:U33))","v":0},{"$f":"MIN(IF(V4:V33<>0,V4:V33))","v":0},{"$f":"MIN(IF(W4:W33<>0,W4:W33))","v":0},{"$f":"MIN(IF(X4:X33<>0,X4:X33))","v":0},{"$f":"MIN(IF(Y4:Y33<>0,Y4:Y33))","v":0},{"$f":"MIN(IF(Z4:Z33<>0,Z4:Z33))","v":0},{"$f":"MIN(IF(AA4:AA33<>0,AA4:AA33))","v":0},{"$f":"MIN(IF(AB4:AB33<>0,AB4:AB33))","v":0}]
[null,null,"measure #",1,2,3,4,5,6,7,8,9,10,11,12,13,14,15,16,17,18,19,20,21,22,23,24,25]
["condition #",null,"feasibility score",{"$f":"_configuration!D2","v":"N’homologuez pas le pesticide (ou supprimez progressivement un pesticide homologué) pour certaines ou toutes les utilisations"},{"$f":"_configuration!E2","v":"Réduisez la dose d’application"},{"$f":"_configuration!F2","v":"Réduisez la fréquences des applications et/ou augmentez l’intervalle de traitement"},{"$f":"_configuration!G2","v":"Limitez l’utilisation à des types de préparation qui entraînent une moindre exposition pour les abeilles (p.ex. préparations à libération lente, appâts, enrobages des semences, gra-nules)"},{"$f":"_configuration!H2","v":"Pour les semences traitées: requérez des enrobages des semences de haute qualité afin de réduire l’abrasion des semences et la dérive ultérieure de poussière pendant le forage."},{"$f":"_configuration!I2","v":"Limitez l’utilisation à des applications à faibles ou nulles émissions (p.ex. serres, entrepôts, conteneurs)"},{"$f":"_configuration!J2","v":"Changez les périodes d’application (p.ex. ne l’appliquez pas pendant la floraison des cultures ou la floraison des mauvaises herbes dans les cultures)"},{"$f":"_configuration!K2","v":"Changez la période d’application (p.ex. ne l’appliquez que le soir, quand les abeilles ne sont pas actives, pour permettre au dépôt du pesticide de se dégrader)"},{"$f":"_configuration!L2","v":"Appliquez des techniques réduisant la dérive (p.ex. buses anti-dérive, déflecteurs de pulvé-risation)"},{"$f":"_configuration!M2","v":"N’autorisez pas l’épandage aérien"},{"$f":"_configuration!N2","v":"Pour les pesticides granulés et les semences traitées: exigez un équipement de forage de haute qualité afin de réduire l’abrasion des semences ou des granulés et la dérive ultérieure de poussière pendant le forage"},{"$f":"_configuration!O2","v":"Appliquez une bande tampon ( de végétation ) de non pulvérisation entre les champs traités et la zone hors champ afin de réduire la dérive"},{"$f":"_configuration!P2","v":"Exigez des conseils de prudence spécifiques sur l’étiquette "},{"$f":"_configuration!Q2","v":"Exigez une notification préalable aux apiculteurs pour leur permettre de déplacer ou de fermer les ruches"},{"$f":"_configuration!R2","v":0},{"$f":"_configuration!S2","v":0},{"$f":"_configuration!T2","v":0},{"$f":"_configuration!U2","v":0},{"$f":"_configuration!V2","v":0},{"$f":"_configuration!W2","v":0},{"$f":"_configuration!X2","v":0},{"$f":"_configuration!Y2","v":0},{"$f":"_configuration!Z2","v":0},{"$f":"_configuration!AA2","v":0},{"$f":"_configuration!AB2","v":0},{"$f":"_configuration!AC2","v":"End of data = 25 measures"}]
[1,{"$f":"_configuration!B3","v":"Des pesticides de remplacement ou des options de lutte contre les ravageurs sont disponibles contre les ravageurs pour lesquels le pesticide devrait être homologué."},{"$f":"IF(ISBLANK('Input Evaluation of Conditions'!C3),99,'Input Evaluation of Conditions'!C3*_configuration!C3)","v":99},{"$f":"INDEX(ScoreTable, MATCH($C4,ConditionalityList,0), MATCH(_configuration!D3,WeightList,0))","v":0},{"$f":"INDEX(ScoreTable, MATCH($C4,ConditionalityList,0), MATCH(_configuration!E3,WeightList,0))","v":0},{"$f":"INDEX(ScoreTable, MATCH($C4,ConditionalityList,0), MATCH(_configuration!F3,WeightList,0))","v":0},{"$f":"INDEX(ScoreTable, MATCH($C4,ConditionalityList,0), MATCH(_configuration!G3,WeightList,0))","v":0},{"$f":"INDEX(ScoreTable, MATCH($C4,ConditionalityList,0), MATCH(_configuration!H3,WeightList,0))","v":0},{"$f":"INDEX(ScoreTable, MATCH($C4,ConditionalityList,0), MATCH(_configuration!I3,WeightList,0))","v":0},{"$f":"INDEX(ScoreTable, MATCH($C4,ConditionalityList,0), MATCH(_configuration!J3,WeightList,0))","v":0},{"$f":"INDEX(ScoreTable, MATCH($C4,ConditionalityList,0), MATCH(_configuration!K3,WeightList,0))","v":0},{"$f":"INDEX(ScoreTable, MATCH($C4,ConditionalityList,0), MATCH(_configuration!L3,WeightList,0))","v":0},{"$f":"INDEX(ScoreTable, MATCH($C4,ConditionalityList,0), MATCH(_configuration!M3,WeightList,0))","v":0},{"$f":"INDEX(ScoreTable, MATCH($C4,ConditionalityList,0), MATCH(_configuration!N3,WeightList,0))","v":0},{"$f":"INDEX(ScoreTable, MATCH($C4,ConditionalityList,0), MATCH(_configuration!O3,WeightList,0))","v":0},{"$f":"INDEX(ScoreTable, MATCH($C4,ConditionalityList,0), MATCH(_configuration!P3,WeightList,0))","v":0},{"$f":"INDEX(ScoreTable, MATCH($C4,ConditionalityList,0), MATCH(_configuration!Q3,WeightList,0))","v":0},{"$f":"INDEX(ScoreTable, MATCH($C4,ConditionalityList,0), MATCH(_configuration!R3,WeightList,0))","v":0},{"$f":"INDEX(ScoreTable, MATCH($C4,ConditionalityList,0), MATCH(_configuration!S3,WeightList,0))","v":0},{"$f":"INDEX(ScoreTable, MATCH($C4,ConditionalityList,0), MATCH(_configuration!T3,WeightList,0))","v":0},{"$f":"INDEX(ScoreTable, MATCH($C4,ConditionalityList,0), MATCH(_configuration!U3,WeightList,0))","v":0},{"$f":"INDEX(ScoreTable, MATCH($C4,ConditionalityList,0), MATCH(_configuration!V3,WeightList,0))","v":0},{"$f":"INDEX(ScoreTable, MATCH($C4,ConditionalityList,0), MATCH(_configuration!W3,WeightList,0))","v":0},{"$f":"INDEX(ScoreTable, MATCH($C4,ConditionalityList,0), MATCH(_configuration!X3,WeightList,0))","v":0},{"$f":"INDEX(ScoreTable, MATCH($C4,ConditionalityList,0), MATCH(_configuration!Y3,WeightList,0))","v":0},{"$f":"INDEX(ScoreTable, MATCH($C4,ConditionalityList,0), MATCH(_configuration!Z3,WeightList,0))","v":0},{"$f":"INDEX(ScoreTable, MATCH($C4,ConditionalityList,0), MATCH(_configuration!AA3,WeightList,0))","v":0},{"$f":"INDEX(ScoreTable, MATCH($C4,ConditionalityList,0), MATCH(_configuration!AB3,WeightList,0))","v":0}]
[2,{"$f":"_configuration!B4","v":"La dose d’application du pesticide peut être réduite sans réduire l’efficacité du pesticide."},{"$f":"IF(ISBLANK('Input Evaluation of Conditions'!C4),99,'Input Evaluation of Conditions'!C4*_configuration!C4)","v":99},{"$f":"INDEX(ScoreTable, MATCH($C5,ConditionalityList,0), MATCH(_configuration!D4,WeightList,0))","v":0},{"$f":"INDEX(ScoreTable, MATCH($C5,ConditionalityList,0), MATCH(_configuration!E4,WeightList,0))","v":0},{"$f":"INDEX(ScoreTable, MATCH($C5,ConditionalityList,0), MATCH(_configuration!F4,WeightList,0))","v":0},{"$f":"INDEX(ScoreTable, MATCH($C5,ConditionalityList,0), MATCH(_configuration!G4,WeightList,0))","v":0},{"$f":"INDEX(ScoreTable, MATCH($C5,ConditionalityList,0), MATCH(_configuration!H4,WeightList,0))","v":0},{"$f":"INDEX(ScoreTable, MATCH($C5,ConditionalityList,0), MATCH(_configuration!I4,WeightList,0))","v":0},{"$f":"INDEX(ScoreTable, MATCH($C5,ConditionalityList,0), MATCH(_configuration!J4,WeightList,0))","v":0},{"$f":"INDEX(ScoreTable, MATCH($C5,ConditionalityList,0), MATCH(_configuration!K4,WeightList,0))","v":0},{"$f":"INDEX(ScoreTable, MATCH($C5,ConditionalityList,0), MATCH(_configuration!L4,WeightList,0))","v":0},{"$f":"INDEX(ScoreTable, MATCH($C5,ConditionalityList,0), MATCH(_configuration!M4,WeightList,0))","v":0},{"$f":"INDEX(ScoreTable, MATCH($C5,ConditionalityList,0), MATCH(_configuration!N4,WeightList,0))","v":0},{"$f":"INDEX(ScoreTable, MATCH($C5,ConditionalityList,0), MATCH(_configuration!O4,WeightList,0))","v":0},{"$f":"INDEX(ScoreTable, MATCH($C5,ConditionalityList,0), MATCH(_configuration!P4,WeightList,0))","v":0},{"$f":"INDEX(ScoreTable, MATCH($C5,ConditionalityList,0), MATCH(_configuration!Q4,WeightList,0))","v":0},{"$f":"INDEX(ScoreTable, MATCH($C5,ConditionalityList,0), MATCH(_configuration!R4,WeightList,0))","v":0},{"$f":"INDEX(ScoreTable, MATCH($C5,ConditionalityList,0), MATCH(_configuration!S4,WeightList,0))","v":0},{"$f":"INDEX(ScoreTable, MATCH($C5,ConditionalityList,0), MATCH(_configuration!T4,WeightList,0))","v":0},{"$f":"INDEX(ScoreTable, MATCH($C5,ConditionalityList,0), MATCH(_configuration!U4,WeightList,0))","v":0},{"$f":"INDEX(ScoreTable, MATCH($C5,ConditionalityList,0), MATCH(_configuration!V4,WeightList,0))","v":0},{"$f":"INDEX(ScoreTable, MATCH($C5,ConditionalityList,0), MATCH(_configuration!W4,WeightList,0))","v":0},{"$f":"INDEX(ScoreTable, MATCH($C5,ConditionalityList,0), MATCH(_configuration!X4,WeightList,0))","v":0},{"$f":"INDEX(ScoreTable, MATCH($C5,ConditionalityList,0), MATCH(_configuration!Y4,WeightList,0))","v":0},{"$f":"INDEX(ScoreTable, MATCH($C5,ConditionalityList,0), MATCH(_configuration!Z4,WeightList,0))","v":0},{"$f":"INDEX(ScoreTable, MATCH($C5,ConditionalityList,0), MATCH(_configuration!AA4,WeightList,0))","v":0},{"$f":"INDEX(ScoreTable, MATCH($C5,ConditionalityList,0), MATCH(_configuration!AB4,WeightList,0))","v":0}]
[3,{"$f":"_configuration!B5","v":"La fréquence de l’application peut être réduite, ou l’intervalle de traitement augmenté, sans réduire l’efficacité du pesticide."},{"$f":"IF(ISBLANK('Input Evaluation of Conditions'!C5),99,'Input Evaluation of Conditions'!C5*_configuration!C5)","v":99},{"$f":"INDEX(ScoreTable, MATCH($C6,ConditionalityList,0), MATCH(_configuration!D5,WeightList,0))","v":0},{"$f":"INDEX(ScoreTable, MATCH($C6,ConditionalityList,0), MATCH(_configuration!E5,WeightList,0))","v":0},{"$f":"INDEX(ScoreTable, MATCH($C6,ConditionalityList,0), MATCH(_configuration!F5,WeightList,0))","v":0},{"$f":"INDEX(ScoreTable, MATCH($C6,ConditionalityList,0), MATCH(_configuration!G5,WeightList,0))","v":0},{"$f":"INDEX(ScoreTable, MATCH($C6,ConditionalityList,0), MATCH(_configuration!H5,WeightList,0))","v":0},{"$f":"INDEX(ScoreTable, MATCH($C6,ConditionalityList,0), MATCH(_configuration!I5,WeightList,0))","v":0},{"$f":"INDEX(ScoreTable, MATCH($C6,ConditionalityList,0), MATCH(_configuration!J5,WeightList,0))","v":0},{"$f":"INDEX(ScoreTable, MATCH($C6,ConditionalityList,0), MATCH(_configuration!K5,WeightList,0))","v":0},{"$f":"INDEX(ScoreTable, MATCH($C6,ConditionalityList,0), MATCH(_configuration!L5,WeightList,0))","v":0},{"$f":"INDEX(ScoreTable, MATCH($C6,ConditionalityList,0), MATCH(_configuration!M5,WeightList,0))","v":0},{"$f":"INDEX(ScoreTable, MATCH($C6,ConditionalityList,0), MATCH(_configuration!N5,WeightList,0))","v":0},{"$f":"INDEX(ScoreTable, MATCH($C6,ConditionalityList,0), MATCH(_configuration!O5,WeightList,0))","v":0},{"$f":"INDEX(ScoreTable, MATCH($C6,ConditionalityList,0), MATCH(_configuration!P5,WeightList,0))","v":0},{"$f":"INDEX(ScoreTable, MATCH($C6,ConditionalityList,0), MATCH(_configuration!Q5,WeightList,0))","v":0},{"$f":"INDEX(ScoreTable, MATCH($C6,ConditionalityList,0), MATCH(_configuration!R5,WeightList,0))","v":0},{"$f":"INDEX(ScoreTable, MATCH($C6,ConditionalityList,0), MATCH(_configuration!S5,WeightList,0))","v":0},{"$f":"INDEX(ScoreTable, MATCH($C6,ConditionalityList,0), MATCH(_configuration!T5,WeightList,0))","v":0},{"$f":"INDEX(ScoreTable, MATCH($C6,ConditionalityList,0), MATCH(_configuration!U5,WeightList,0))","v":0},{"$f":"INDEX(ScoreTable, MATCH($C6,ConditionalityList,0), MATCH(_configuration!V5,WeightList,0))","v":0},{"$f":"INDEX(ScoreTable, MATCH($C6,ConditionalityList,0), MATCH(_configuration!W5,WeightList,0))","v":0},{"$f":"INDEX(ScoreTable, MATCH($C6,ConditionalityList,0), MATCH(_configuration!X5,WeightList,0))","v":0},{"$f":"INDEX(ScoreTable, MATCH($C6,ConditionalityList,0), MATCH(_configuration!Y5,WeightList,0))","v":0},{"$f":"INDEX(ScoreTable, MATCH($C6,ConditionalityList,0), MATCH(_configuration!Z5,WeightList,0))","v":0},{"$f":"INDEX(ScoreTable, MATCH($C6,ConditionalityList,0), MATCH(_configuration!AA5,WeightList,0))","v":0},{"$f":"INDEX(ScoreTable, MATCH($C6,ConditionalityList,0), MATCH(_configuration!AB5,WeightList,0))","v":0}]
[4,{"$f":"_configuration!B6","v":"Des types de préparation du même pesticide à moindre risque sont suffisamment efficaces contre le(s) ravageur(s) ciblé(s)."},{"$f":"IF(ISBLANK('Input Evaluation of Conditions'!C6),99,'Input Evaluation of Conditions'!C6*_configuration!C6)","v":99},{"$f":"INDEX(ScoreTable, MATCH($C7,ConditionalityList,0), MATCH(_configuration!D6,WeightList,0))","v":0},{"$f":"INDEX(ScoreTable, MATCH($C7,ConditionalityList,0), MATCH(_configuration!E6,WeightList,0))","v":0},{"$f":"INDEX(ScoreTable, MATCH($C7,ConditionalityList,0), MATCH(_configuration!F6,WeightList,0))","v":0},{"$f":"INDEX(ScoreTable, MATCH($C7,ConditionalityList,0), MATCH(_configuration!G6,WeightList,0))","v":0},{"$f":"INDEX(ScoreTable, MATCH($C7,ConditionalityList,0), MATCH(_configuration!H6,WeightList,0))","v":0},{"$f":"INDEX(ScoreTable, MATCH($C7,ConditionalityList,0), MATCH(_configuration!I6,WeightList,0))","v":0},{"$f":"INDEX(ScoreTable, MATCH($C7,ConditionalityList,0), MATCH(_configuration!J6,WeightList,0))","v":0},{"$f":"INDEX(ScoreTable, MATCH($C7,ConditionalityList,0), MATCH(_configuration!K6,WeightList,0))","v":0},{"$f":"INDEX(ScoreTable, MATCH($C7,ConditionalityList,0), MATCH(_configuration!L6,WeightList,0))","v":0},{"$f":"INDEX(ScoreTable, MATCH($C7,ConditionalityList,0), MATCH(_configuration!M6,WeightList,0))","v":0},{"$f":"INDEX(ScoreTable, MATCH($C7,ConditionalityList,0), MATCH(_configuration!N6,WeightList,0))","v":0},{"$f":"INDEX(ScoreTable, MATCH($C7,ConditionalityList,0), MATCH(_configuration!O6,WeightList,0))","v":0},{"$f":"INDEX(ScoreTable, MATCH($C7,ConditionalityList,0), MATCH(_configuration!P6,WeightList,0))","v":0},{"$f":"INDEX(ScoreTable, MATCH($C7,ConditionalityList,0), MATCH(_configuration!Q6,WeightList,0))","v":0},{"$f":"INDEX(ScoreTable, MATCH($C7,ConditionalityList,0), MATCH(_configuration!R6,WeightList,0))","v":0},{"$f":"INDEX(ScoreTable, MATCH($C7,ConditionalityList,0), MATCH(_configuration!S6,WeightList,0))","v":0},{"$f":"INDEX(ScoreTable, MATCH($C7,ConditionalityList,0), MATCH(_configuration!T6,WeightList,0))","v":0},{"$f":"INDEX(ScoreTable, MATCH($C7,ConditionalityList,0), MATCH(_configuration!U6,WeightList,0))","v":0},{"$f":"INDEX(ScoreTable, MATCH($C7,ConditionalityList,0), MATCH(_configuration!V6,WeightList,0))","v":0},{"$f":"INDEX(ScoreTable, MATCH($C7,ConditionalityList,0), MATCH(_configuration!W6,WeightList,0))","v":0},{"$f":"INDEX(ScoreTable, MATCH($C7,ConditionalityList,0), MATCH(_configuration!X6,WeightList,0))","v":0},{"$f":"INDEX(ScoreTable, MATCH($C7,ConditionalityList,0), MATCH(_configuration!Y6,WeightList,0))","v":0},{"$f":"INDEX(ScoreTable, MATCH($C7,ConditionalityList,0), MATCH(_configuration!Z6,WeightList,0))","v":0},{"$f":"INDEX(ScoreTable, MATCH($C7,ConditionalityList,0), MATCH(_configuration!AA6,WeightList,0))","v":0},{"$f":"INDEX(ScoreTable, MATCH($C7,ConditionalityList,0), MATCH(_configuration!AB6,WeightList,0))","v":0}]
[5,{"$f":"_configuration!B7","v":"Le pesticide n’est pas systémique."},{"$f":"IF(ISBLANK('Input Evaluation of Conditions'!C7),99,'Input Evaluation of Conditions'!C7*_configuration!C7)","v":99},{"$f":"INDEX(ScoreTable, MATCH($C8,ConditionalityList,0), MATCH(_configuration!D7,WeightList,0))","v":0},{"$f":"INDEX(ScoreTable, MATCH($C8,ConditionalityList,0), MATCH(_configuration!E7,WeightList,0))","v":0},{"$f":"INDEX(ScoreTable, MATCH($C8,ConditionalityList,0), MATCH(_configuration!F7,WeightList,0))","v":0},{"$f":"INDEX(ScoreTable, MATCH($C8,ConditionalityList,0), MATCH(_configuration!G7,WeightList,0))","v":0},{"$f":"INDEX(ScoreTable, MATCH($C8,ConditionalityList,0), MATCH(_configuration!H7,WeightList,0))","v":0},{"$f":"INDEX(ScoreTable, MATCH($C8,ConditionalityList,0), MATCH(_configuration!I7,WeightList,0))","v":0},{"$f":"INDEX(ScoreTable, MATCH($C8,ConditionalityList,0), MATCH(_configuration!J7,WeightList,0))","v":0},{"$f":"INDEX(ScoreTable, MATCH($C8,ConditionalityList,0), MATCH(_configuration!K7,WeightList,0))","v":0},{"$f":"INDEX(ScoreTable, MATCH($C8,ConditionalityList,0), MATCH(_configuration!L7,WeightList,0))","v":0},{"$f":"INDEX(ScoreTable, MATCH($C8,ConditionalityList,0), MATCH(_configuration!M7,WeightList,0))","v":0},{"$f":"INDEX(ScoreTable, MATCH($C8,ConditionalityList,0), MATCH(_configuration!N7,WeightList,0))","v":0},{"$f":"INDEX(ScoreTable, MATCH($C8,ConditionalityList,0), MATCH(_configuration!O7,WeightList,0))","v":0},{"$f":"INDEX(ScoreTable, MATCH($C8,ConditionalityList,0), MATCH(_configuration!P7,WeightList,0))","v":0},{"$f":"INDEX(ScoreTable, MATCH($C8,ConditionalityList,0), MATCH(_configuration!Q7,WeightList,0))","v":0},{"$f":"INDEX(ScoreTable, MATCH($C8,ConditionalityList,0), MATCH(_configuration!R7,WeightList,0))","v":0},{"$f":"INDEX(ScoreTable, MATCH($C8,ConditionalityList,0), MATCH(_configuration!S7,WeightList,0))","v":0},{"$f":"INDEX(ScoreTable, MATCH($C8,ConditionalityList,0), MATCH(_configuration!T7,WeightList,0))","v":0},{"$f":"INDEX(ScoreTable, MATCH($C8,ConditionalityList,0), MATCH(_configuration!U7,WeightList,0))","v":0},{"$f":"INDEX(ScoreTable, MATCH($C8,ConditionalityList,0), MATCH(_configuration!V7,WeightList,0))","v":0},{"$f":"INDEX(ScoreTable, MATCH($C8,ConditionalityList,0), MATCH(_configuration!W7,WeightList,0))","v":0},{"$f":"INDEX(ScoreTable, MATCH($C8,ConditionalityList,0), MATCH(_configuration!X7,WeightList,0))","v":0},{"$f":"INDEX(ScoreTable, MATCH($C8,ConditionalityList,0), MATCH(_configuration!Y7,WeightList,0))","v":0},{"$f":"INDEX(ScoreTable, MATCH($C8,ConditionalityList,0), MATCH(_configuration!Z7,WeightList,0))","v":0},{"$f":"INDEX(ScoreTable, MATCH($C8,ConditionalityList,0), MATCH(_configuration!AA7,WeightList,0))","v":0},{"$f":"INDEX(ScoreTable, MATCH($C8,ConditionalityList,0), MATCH(_configuration!AB7,WeightList,0))","v":0}]
[6,{"$f":"_configuration!B8","v":"Pour les semences traitées: des enrobages des semences de haute qualité réduisant l’abrasion des semences sont disponibles."},{"$f":"IF(ISBLANK('Input Evaluation of Conditions'!C8),99,'Input Evaluation of Conditions'!C8*_configuration!C8)","v":99},{"$f":"INDEX(ScoreTable, MATCH($C9,ConditionalityList,0), MATCH(_configuration!D8,WeightList,0))","v":0},{"$f":"INDEX(ScoreTable, MATCH($C9,ConditionalityList,0), MATCH(_configuration!E8,WeightList,0))","v":0},{"$f":"INDEX(ScoreTable, MATCH($C9,ConditionalityList,0), MATCH(_configuration!F8,WeightList,0))","v":0},{"$f":"INDEX(ScoreTable, MATCH($C9,ConditionalityList,0), MATCH(_configuration!G8,WeightList,0))","v":0},{"$f":"INDEX(ScoreTable, MATCH($C9,ConditionalityList,0), MATCH(_configuration!H8,WeightList,0))","v":0},{"$f":"INDEX(ScoreTable, MATCH($C9,ConditionalityList,0), MATCH(_configuration!I8,WeightList,0))","v":0},{"$f":"INDEX(ScoreTable, MATCH($C9,ConditionalityList,0), MATCH(_configuration!J8,WeightList,0))","v":0},{"$f":"INDEX(ScoreTable, MATCH($C9,ConditionalityList,0), MATCH(_configuration!K8,WeightList,0))","v":0},{"$f":"INDEX(ScoreTable, MATCH($C9,ConditionalityList,0), MATCH(_configuration!L8,WeightList,0))","v":0},{"$f":"INDEX(ScoreTable, MATCH($C9,ConditionalityList,0), MATCH(_configuration!M8,WeightList,0))","v":0},{"$f":"INDEX(ScoreTable, MATCH($C9,ConditionalityList,0), MATCH(_configuration!N8,WeightList,0))","v":0},{"$f":"INDEX(ScoreTable, MATCH($C9,ConditionalityList,0), MATCH(_configuration!O8,WeightList,0))","v":0},{"$f":"INDEX(ScoreTable, MATCH($C9,ConditionalityList,0), MATCH(_configuration!P8,WeightList,0))","v":0},{"$f":"INDEX(ScoreTable, MATCH($C9,ConditionalityList,0), MATCH(_configuration!Q8,WeightList,0))","v":0},{"$f":"INDEX(ScoreTable, MATCH($C9,ConditionalityList,0), MATCH(_configuration!R8,WeightList,0))","v":0},{"$f":"INDEX(ScoreTable, MATCH($C9,ConditionalityList,0), MATCH(_configuration!S8,WeightList,0))","v":0},{"$f":"INDEX(ScoreTable, MATCH($C9,ConditionalityList,0), MATCH(_configuration!T8,WeightList,0))","v":0},{"$f":"INDEX(ScoreTable, MATCH($C9,ConditionalityList,0), MATCH(_configuration!U8,WeightList,0))","v":0},{"$f":"INDEX(ScoreTable, MATCH($C9,ConditionalityList,0), MATCH(_configuration!V8,WeightList,0))","v":0},{"$f":"INDEX(ScoreTable, MATCH($C9,ConditionalityList,0), MATCH(_configuration!W8,WeightList,0))","v":0},{"$f":"INDEX(ScoreTable, MATCH($C9,ConditionalityList,0), MATCH(_configuration!X8,WeightList,0))","v":0},{"$f":"INDEX(ScoreTable, MATCH($C9,ConditionalityList,0), MATCH(_configuration!Y8,WeightList,0))","v":0},{"$f":"INDEX(ScoreTable, MATCH($C9,ConditionalityList,0), MATCH(_configuration!Z8,WeightList,0))","v":0},{"$f":"INDEX(ScoreTable, MATCH($C9,ConditionalityList,0), MATCH(_configuration!AA8,WeightList,0))","v":0},{"$f":"INDEX(ScoreTable, MATCH($C9,ConditionalityList,0), MATCH(_configuration!AB8,WeightList,0))","v":0}]
[7,{"$f":"_configuration!B9","v":"Le pesticide sera homologué pour des applications entraînant une exposition faible ou nulle pour les abeilles, telles que dans les serres, les entrepôts ou les conteneurs."},{"$f":"IF(ISBLANK('Input Evaluation of Conditions'!C9),99,'Input Evaluation of Conditions'!C9*_configuration!C9)","v":99},{"$f":"INDEX(ScoreTable, MATCH($C10,ConditionalityList,0), MATCH(_configuration!D9,WeightList,0))","v":0},{"$f":"INDEX(ScoreTable, MATCH($C10,ConditionalityList,0), MATCH(_configuration!E9,WeightList,0))","v":0},{"$f":"INDEX(ScoreTable, MATCH($C10,ConditionalityList,0), MATCH(_configuration!F9,WeightList,0))","v":0},{"$f":"INDEX(ScoreTable, MATCH($C10,ConditionalityList,0), MATCH(_configuration!G9,WeightList,0))","v":0},{"$f":"INDEX(ScoreTable, MATCH($C10,ConditionalityList,0), MATCH(_configuration!H9,WeightList,0))","v":0},{"$f":"INDEX(ScoreTable, MATCH($C10,ConditionalityList,0), MATCH(_configuration!I9,WeightList,0))","v":0},{"$f":"INDEX(ScoreTable, MATCH($C10,ConditionalityList,0), MATCH(_configuration!J9,WeightList,0))","v":0},{"$f":"INDEX(ScoreTable, MATCH($C10,ConditionalityList,0), MATCH(_configuration!K9,WeightList,0))","v":0},{"$f":"INDEX(ScoreTable, MATCH($C10,ConditionalityList,0), MATCH(_configuration!L9,WeightList,0))","v":0},{"$f":"INDEX(ScoreTable, MATCH($C10,ConditionalityList,0), MATCH(_configuration!M9,WeightList,0))","v":0},{"$f":"INDEX(ScoreTable, MATCH($C10,ConditionalityList,0), MATCH(_configuration!N9,WeightList,0))","v":0},{"$f":"INDEX(ScoreTable, MATCH($C10,ConditionalityList,0), MATCH(_configuration!O9,WeightList,0))","v":0},{"$f":"INDEX(ScoreTable, MATCH($C10,ConditionalityList,0), MATCH(_configuration!P9,WeightList,0))","v":0},{"$f":"INDEX(ScoreTable, MATCH($C10,ConditionalityList,0), MATCH(_configuration!Q9,WeightList,0))","v":0},{"$f":"INDEX(ScoreTable, MATCH($C10,ConditionalityList,0), MATCH(_configuration!R9,WeightList,0))","v":0},{"$f":"INDEX(ScoreTable, MATCH($C10,ConditionalityList,0), MATCH(_configuration!S9,WeightList,0))","v":0},{"$f":"INDEX(ScoreTable, MATCH($C10,ConditionalityList,0), MATCH(_configuration!T9,WeightList,0))","v":0},{"$f":"INDEX(ScoreTable, MATCH($C10,ConditionalityList,0), MATCH(_configuration!U9,WeightList,0))","v":0},{"$f":"INDEX(ScoreTable, MATCH($C10,ConditionalityList,0), MATCH(_configuration!V9,WeightList,0))","v":0},{"$f":"INDEX(ScoreTable, MATCH($C10,ConditionalityList,0), MATCH(_configuration!W9,WeightList,0))","v":0},{"$f":"INDEX(ScoreTable, MATCH($C10,ConditionalityList,0), MATCH(_configuration!X9,WeightList,0))","v":0},{"$f":"INDEX(ScoreTable, MATCH($C10,ConditionalityList,0), MATCH(_configuration!Y9,WeightList,0))","v":0},{"$f":"INDEX(ScoreTable, MATCH($C10,ConditionalityList,0), MATCH(_configuration!Z9,WeightList,0))","v":0},{"$f":"INDEX(ScoreTable, MATCH($C10,ConditionalityList,0), MATCH(_configuration!AA9,WeightList,0))","v":0},{"$f":"INDEX(ScoreTable, MATCH($C10,ConditionalityList,0), MATCH(_configuration!AB9,WeightList,0))","v":0}]
[8,{"$f":"_configuration!B10","v":"Le ravageur cible n’est pas présent pendant la floraison de la culture (ou la floraison des mauvaises herbes dans les cultures)."},{"$f":"IF(ISBLANK('Input Evaluation of Conditions'!C10),99,'Input Evaluation of Conditions'!C10*_configuration!C10)","v":99},{"$f":"INDEX(ScoreTable, MATCH($C11,ConditionalityList,0), MATCH(_configuration!D10,WeightList,0))","v":0},{"$f":"INDEX(ScoreTable, MATCH($C11,ConditionalityList,0), MATCH(_configuration!E10,WeightList,0))","v":0},{"$f":"INDEX(ScoreTable, MATCH($C11,ConditionalityList,0), MATCH(_configuration!F10,WeightList,0))","v":0},{"$f":"INDEX(ScoreTable, MATCH($C11,ConditionalityList,0), MATCH(_configuration!G10,WeightList,0))","v":0},{"$f":"INDEX(ScoreTable, MATCH($C11,ConditionalityList,0), MATCH(_configuration!H10,WeightList,0))","v":0},{"$f":"INDEX(ScoreTable, MATCH($C11,ConditionalityList,0), MATCH(_configuration!I10,WeightList,0))","v":0},{"$f":"INDEX(ScoreTable, MATCH($C11,ConditionalityList,0), MATCH(_configuration!J10,WeightList,0))","v":0},{"$f":"INDEX(ScoreTable, MATCH($C11,ConditionalityList,0), MATCH(_configuration!K10,WeightList,0))","v":0},{"$f":"INDEX(ScoreTable, MATCH($C11,ConditionalityList,0), MATCH(_configuration!L10,WeightList,0))","v":0},{"$f":"INDEX(ScoreTable, MATCH($C11,ConditionalityList,0), MATCH(_configuration!M10,WeightList,0))","v":0},{"$f":"INDEX(ScoreTable, MATCH($C11,ConditionalityList,0), MATCH(_configuration!N10,WeightList,0))","v":0},{"$f":"INDEX(ScoreTable, MATCH($C11,ConditionalityList,0), MATCH(_configuration!O10,WeightList,0))","v":0},{"$f":"INDEX(ScoreTable, MATCH($C11,ConditionalityList,0), MATCH(_configuration!P10,WeightList,0))","v":0},{"$f":"INDEX(ScoreTable, MATCH($C11,ConditionalityList,0), MATCH(_configuration!Q10,WeightList,0))","v":0},{"$f":"INDEX(ScoreTable, MATCH($C11,ConditionalityList,0), MATCH(_configuration!R10,WeightList,0))","v":0},{"$f":"INDEX(ScoreTable, MATCH($C11,ConditionalityList,0), MATCH(_configuration!S10,WeightList,0))","v":0},{"$f":"INDEX(ScoreTable, MATCH($C11,ConditionalityList,0), MATCH(_configuration!T10,WeightList,0))","v":0},{"$f":"INDEX(ScoreTable, MATCH($C11,ConditionalityList,0), MATCH(_configuration!U10,WeightList,0))","v":0},{"$f":"INDEX(ScoreTable, MATCH($C11,ConditionalityList,0), MATCH(_configuration!V10,WeightList,0))","v":0},{"$f":"INDEX(ScoreTable, MATCH($C11,ConditionalityList,0), MATCH(_configuration!W10,WeightList,0))","v":0},{"$f":"INDEX(ScoreTable, MATCH($C11,ConditionalityList,0), MATCH(_configuration!X10,WeightList,0))","v":0},{"$f":"INDEX(ScoreTable, MATCH($C11,ConditionalityList,0), MATCH(_configuration!Y10,WeightList,0))","v":0},{"$f":"INDEX(ScoreTable, MATCH($C11,ConditionalityList,0), MATCH(_configuration!Z10,WeightList,0))","v":0},{"$f":"INDEX(ScoreTable, MATCH($C11,ConditionalityList,0), MATCH(_configuration!AA10,WeightList,0))","v":0},{"$f":"INDEX(ScoreTable, MATCH($C11,ConditionalityList,0), MATCH(_configuration!AB10,WeightList,0))","v":0}]
[9,{"$f":"_configuration!B11","v":"Le pesticide se dégrade rapidement dans la culture/végétation (c.-à-d. RT25 < 8 heures: RT25=temps résiduel du pesticide à 25% de mortalité)."},{"$f":"IF(ISBLANK('Input Evaluation of Conditions'!C11),99,'Input Evaluation of Conditions'!C11*_configuration!C11)","v":99},{"$f":"INDEX(ScoreTable, MATCH($C12,ConditionalityList,0), MATCH(_configuration!D11,WeightList,0))","v":0},{"$f":"INDEX(ScoreTable, MATCH($C12,ConditionalityList,0), MATCH(_configuration!E11,WeightList,0))","v":0},{"$f":"INDEX(ScoreTable, MATCH($C12,ConditionalityList,0), MATCH(_configuration!F11,WeightList,0))","v":0},{"$f":"INDEX(ScoreTable, MATCH($C12,ConditionalityList,0), MATCH(_configuration!G11,WeightList,0))","v":0},{"$f":"INDEX(ScoreTable, MATCH($C12,ConditionalityList,0), MATCH(_configuration!H11,WeightList,0))","v":0},{"$f":"INDEX(ScoreTable, MATCH($C12,ConditionalityList,0), MATCH(_configuration!I11,WeightList,0))","v":0},{"$f":"INDEX(ScoreTable, MATCH($C12,ConditionalityList,0), MATCH(_configuration!J11,WeightList,0))","v":0},{"$f":"INDEX(ScoreTable, MATCH($C12,ConditionalityList,0), MATCH(_configuration!K11,WeightList,0))","v":0},{"$f":"INDEX(ScoreTable, MATCH($C12,ConditionalityList,0), MATCH(_configuration!L11,WeightList,0))","v":0},{"$f":"INDEX(ScoreTable, MATCH($C12,ConditionalityList,0), MATCH(_configuration!M11,WeightList,0))","v":0},{"$f":"INDEX(ScoreTable, MATCH($C12,ConditionalityList,0), MATCH(_configuration!N11,WeightList,0))","v":0},{"$f":"INDEX(ScoreTable, MATCH($C12,ConditionalityList,0), MATCH(_configuration!O11,WeightList,0))","v":0},{"$f":"INDEX(ScoreTable, MATCH($C12,ConditionalityList,0), MATCH(_configuration!P11,WeightList,0))","v":0},{"$f":"INDEX(ScoreTable, MATCH($C12,ConditionalityList,0), MATCH(_configuration!Q11,WeightList,0))","v":0},{"$f":"INDEX(ScoreTable, MATCH($C12,ConditionalityList,0), MATCH(_configuration!R11,WeightList,0))","v":0},{"$f":"INDEX(ScoreTable, MATCH($C12,ConditionalityList,0), MATCH(_configuration!S11,WeightList,0))","v":0},{"$f":"INDEX(ScoreTable, MATCH($C12,ConditionalityList,0), MATCH(_configuration!T11,WeightList,0))","v":0},{"$f":"INDEX(ScoreTable, MATCH($C12,ConditionalityList,0), MATCH(_configuration!U11,WeightList,0))","v":0},{"$f":"INDEX(ScoreTable, MATCH($C12,ConditionalityList,0), MATCH(_configuration!V11,WeightList,0))","v":0},{"$f":"INDEX(ScoreTable, MATCH($C12,ConditionalityList,0), MATCH(_configuration!W11,WeightList,0))","v":0},{"$f":"INDEX(ScoreTable, MATCH($C12,ConditionalityList,0), MATCH(_configuration!X11,WeightList,0))","v":0},{"$f":"INDEX(ScoreTable, MATCH($C12,ConditionalityList,0), MATCH(_configuration!Y11,WeightList,0))","v":0},{"$f":"INDEX(ScoreTable, MATCH($C12,ConditionalityList,0), MATCH(_configuration!Z11,WeightList,0))","v":0},{"$f":"INDEX(ScoreTable, MATCH($C12,ConditionalityList,0), MATCH(_configuration!AA11,WeightList,0))","v":0},{"$f":"INDEX(ScoreTable, MATCH($C12,ConditionalityList,0), MATCH(_configuration!AB11,WeightList,0))","v":0}]
[10,{"$f":"_configuration!B12","v":"Un équipement réduisant la dérive (p.ex. buses limitant la dérive, déflecteurs de pulvérisation) est disponible pour les agriculteurs et il est abordable."},{"$f":"IF(ISBLANK('Input Evaluation of Conditions'!C12),99,'Input Evaluation of Conditions'!C12*_configuration!C12)","v":99},{"$f":"INDEX(ScoreTable, MATCH($C13,ConditionalityList,0), MATCH(_configuration!D12,WeightList,0))","v":0},{"$f":"INDEX(ScoreTable, MATCH($C13,ConditionalityList,0), MATCH(_configuration!E12,WeightList,0))","v":0},{"$f":"INDEX(ScoreTable, MATCH($C13,ConditionalityList,0), MATCH(_configuration!F12,WeightList,0))","v":0},{"$f":"INDEX(ScoreTable, MATCH($C13,ConditionalityList,0), MATCH(_configuration!G12,WeightList,0))","v":0},{"$f":"INDEX(ScoreTable, MATCH($C13,ConditionalityList,0), MATCH(_configuration!H12,WeightList,0))","v":0},{"$f":"INDEX(ScoreTable, MATCH($C13,ConditionalityList,0), MATCH(_configuration!I12,WeightList,0))","v":0},{"$f":"INDEX(ScoreTable, MATCH($C13,ConditionalityList,0), MATCH(_configuration!J12,WeightList,0))","v":0},{"$f":"INDEX(ScoreTable, MATCH($C13,ConditionalityList,0), MATCH(_configuration!K12,WeightList,0))","v":0},{"$f":"INDEX(ScoreTable, MATCH($C13,ConditionalityList,0), MATCH(_configuration!L12,WeightList,0))","v":0},{"$f":"INDEX(ScoreTable, MATCH($C13,ConditionalityList,0), MATCH(_configuration!M12,WeightList,0))","v":0},{"$f":"INDEX(ScoreTable, MATCH($C13,ConditionalityList,0), MATCH(_configuration!N12,WeightList,0))","v":0},{"$f":"INDEX(ScoreTable, MATCH($C13,ConditionalityList,0), MATCH(_configuration!O12,WeightList,0))","v":0},{"$f":"INDEX(ScoreTable, MATCH($C13,ConditionalityList,0), MATCH(_configuration!P12,WeightList,0))","v":0},{"$f":"INDEX(ScoreTable, MATCH($C13,ConditionalityList,0), MATCH(_configuration!Q12,WeightList,0))","v":0},{"$f":"INDEX(ScoreTable, MATCH($C13,ConditionalityList,0), MATCH(_configuration!R12,WeightList,0))","v":0},{"$f":"INDEX(ScoreTable, MATCH($C13,ConditionalityList,0), MATCH(_configuration!S12,WeightList,0))","v":0},{"$f":"INDEX(ScoreTable, MATCH($C13,ConditionalityList,0), MATCH(_configuration!T12,WeightList,0))","v":0},{"$f":"INDEX(ScoreTable, MATCH($C13,ConditionalityList,0), MATCH(_configuration!U12,WeightList,0))","v":0},{"$f":"INDEX(ScoreTable, MATCH($C13,ConditionalityList,0), MATCH(_configuration!V12,WeightList,0))","v":0},{"$f":"INDEX(ScoreTable, MATCH($C13,ConditionalityList,0), MATCH(_configuration!W12,WeightList,0))","v":0},{"$f":"INDEX(ScoreTable, MATCH($C13,ConditionalityList,0), MATCH(_configuration!X12,WeightList,0))","v":0},{"$f":"INDEX(ScoreTable, MATCH($C13,ConditionalityList,0), MATCH(_configuration!Y12,WeightList,0))","v":0},{"$f":"INDEX(ScoreTable, MATCH($C13,ConditionalityList,0), MATCH(_configuration!Z12,WeightList,0))","v":0},{"$f":"INDEX(ScoreTable, MATCH($C13,ConditionalityList,0), MATCH(_configuration!AA12,WeightList,0))","v":0},{"$f":"INDEX(ScoreTable, MATCH($C13,ConditionalityList,0), MATCH(_configuration!AB12,WeightList,0))","v":0}]
[11,{"$f":"_configuration!B13","v":"En plus de l’application par épandage aérien, le ravageur cible peut également être traité par épandage terrestre."},{"$f":"IF(ISBLANK('Input Evaluation of Conditions'!C13),99,'Input Evaluation of Conditions'!C13*_configuration!C13)","v":99},{"$f":"INDEX(ScoreTable, MATCH($C14,ConditionalityList,0), MATCH(_configuration!D13,WeightList,0))","v":0},{"$f":"INDEX(ScoreTable, MATCH($C14,ConditionalityList,0), MATCH(_configuration!E13,WeightList,0))","v":0},{"$f":"INDEX(ScoreTable, MATCH($C14,ConditionalityList,0), MATCH(_configuration!F13,WeightList,0))","v":0},{"$f":"INDEX(ScoreTable, MATCH($C14,ConditionalityList,0), MATCH(_configuration!G13,WeightList,0))","v":0},{"$f":"INDEX(ScoreTable, MATCH($C14,ConditionalityList,0), MATCH(_configuration!H13,WeightList,0))","v":0},{"$f":"INDEX(ScoreTable, MATCH($C14,ConditionalityList,0), MATCH(_configuration!I13,WeightList,0))","v":0},{"$f":"INDEX(ScoreTable, MATCH($C14,ConditionalityList,0), MATCH(_configuration!J13,WeightList,0))","v":0},{"$f":"INDEX(ScoreTable, MATCH($C14,ConditionalityList,0), MATCH(_configuration!K13,WeightList,0))","v":0},{"$f":"INDEX(ScoreTable, MATCH($C14,ConditionalityList,0), MATCH(_configuration!L13,WeightList,0))","v":0},{"$f":"INDEX(ScoreTable, MATCH($C14,ConditionalityList,0), MATCH(_configuration!M13,WeightList,0))","v":0},{"$f":"INDEX(ScoreTable, MATCH($C14,ConditionalityList,0), MATCH(_configuration!N13,WeightList,0))","v":0},{"$f":"INDEX(ScoreTable, MATCH($C14,ConditionalityList,0), MATCH(_configuration!O13,WeightList,0))","v":0},{"$f":"INDEX(ScoreTable, MATCH($C14,ConditionalityList,0), MATCH(_configuration!P13,WeightList,0))","v":0},{"$f":"INDEX(ScoreTable, MATCH($C14,ConditionalityList,0), MATCH(_configuration!Q13,WeightList,0))","v":0},{"$f":"INDEX(ScoreTable, MATCH($C14,ConditionalityList,0), MATCH(_configuration!R13,WeightList,0))","v":0},{"$f":"INDEX(ScoreTable, MATCH($C14,ConditionalityList,0), MATCH(_configuration!S13,WeightList,0))","v":0},{"$f":"INDEX(ScoreTable, MATCH($C14,ConditionalityList,0), MATCH(_configuration!T13,WeightList,0))","v":0},{"$f":"INDEX(ScoreTable, MATCH($C14,ConditionalityList,0), MATCH(_configuration!U13,WeightList,0))","v":0},{"$f":"INDEX(ScoreTable, MATCH($C14,ConditionalityList,0), MATCH(_configuration!V13,WeightList,0))","v":0},{"$f":"INDEX(ScoreTable, MATCH($C14,ConditionalityList,0), MATCH(_configuration!W13,WeightList,0))","v":0},{"$f":"INDEX(ScoreTable, MATCH($C14,ConditionalityList,0), MATCH(_configuration!X13,WeightList,0))","v":0},{"$f":"INDEX(ScoreTable, MATCH($C14,ConditionalityList,0), MATCH(_configuration!Y13,WeightList,0))","v":0},{"$f":"INDEX(ScoreTable, MATCH($C14,ConditionalityList,0), MATCH(_configuration!Z13,WeightList,0))","v":0},{"$f":"INDEX(ScoreTable, MATCH($C14,ConditionalityList,0), MATCH(_configuration!AA13,WeightList,0))","v":0},{"$f":"INDEX(ScoreTable, MATCH($C14,ConditionalityList,0), MATCH(_configuration!AB13,WeightList,0))","v":0}]
[12,{"$f":"_configuration!B14","v":"Un équipement de forage pour les pesticides granulés et les semences traitées est disponible pour les agriculteurs et il est abordable."},{"$f":"IF(ISBLANK('Input Evaluation of Conditions'!C14),99,'Input Evaluation of Conditions'!C14*_configuration!C14)","v":99},{"$f":"INDEX(ScoreTable, MATCH($C15,ConditionalityList,0), MATCH(_configuration!D14,WeightList,0))","v":0},{"$f":"INDEX(ScoreTable, MATCH($C15,ConditionalityList,0), MATCH(_configuration!E14,WeightList,0))","v":0},{"$f":"INDEX(ScoreTable, MATCH($C15,ConditionalityList,0), MATCH(_configuration!F14,WeightList,0))","v":0},{"$f":"INDEX(ScoreTable, MATCH($C15,ConditionalityList,0), MATCH(_configuration!G14,WeightList,0))","v":0},{"$f":"INDEX(ScoreTable, MATCH($C15,ConditionalityList,0), MATCH(_configuration!H14,WeightList,0))","v":0},{"$f":"INDEX(ScoreTable, MATCH($C15,ConditionalityList,0), MATCH(_configuration!I14,WeightList,0))","v":0},{"$f":"INDEX(ScoreTable, MATCH($C15,ConditionalityList,0), MATCH(_configuration!J14,WeightList,0))","v":0},{"$f":"INDEX(ScoreTable, MATCH($C15,ConditionalityList,0), MATCH(_configuration!K14,WeightList,0))","v":0},{"$f":"INDEX(ScoreTable, MATCH($C15,ConditionalityList,0), MATCH(_configuration!L14,WeightList,0))","v":0},{"$f":"INDEX(ScoreTable, MATCH($C15,ConditionalityList,0), MATCH(_configuration!M14,WeightList,0))","v":0},{"$f":"INDEX(ScoreTable, MATCH($C15,ConditionalityList,0), MATCH(_configuration!N14,WeightList,0))","v":0},{"$f":"INDEX(ScoreTable, MATCH($C15,ConditionalityList,0), MATCH(_configuration!O14,WeightList,0))","v":0},{"$f":"INDEX(ScoreTable, MATCH($C15,ConditionalityList,0), MATCH(_configuration!P14,WeightList,0))","v":0},{"$f":"INDEX(ScoreTable, MATCH($C15,ConditionalityList,0), MATCH(_configuration!Q14,WeightList,0))","v":0},{"$f":"INDEX(ScoreTable, MATCH($C15,ConditionalityList,0), MATCH(_configuration!R14,WeightList,0))","v":0},{"$f":"INDEX(ScoreTable, MATCH($C15,ConditionalityList,0), MATCH(_configuration!S14,WeightList,0))","v":0},{"$f":"INDEX(ScoreTable, MATCH($C15,ConditionalityList,0), MATCH(_configuration!T14,WeightList,0))","v":0},{"$f":"INDEX(ScoreTable, MATCH($C15,ConditionalityList,0), MATCH(_configuration!U14,WeightList,0))","v":0},{"$f":"INDEX(ScoreTable, MATCH($C15,ConditionalityList,0), MATCH(_configuration!V14,WeightList,0))","v":0},{"$f":"INDEX(ScoreTable, MATCH($C15,ConditionalityList,0), MATCH(_configuration!W14,WeightList,0))","v":0},{"$f":"INDEX(ScoreTable, MATCH($C15,ConditionalityList,0), MATCH(_configuration!X14,WeightList,0))","v":0},{"$f":"INDEX(ScoreTable, MATCH($C15,ConditionalityList,0), MATCH(_configuration!Y14,WeightList,0))","v":0},{"$f":"INDEX(ScoreTable, MATCH($C15,ConditionalityList,0), MATCH(_configuration!Z14,WeightList,0))","v":0},{"$f":"INDEX(ScoreTable, MATCH($C15,ConditionalityList,0), MATCH(_configuration!AA14,WeightList,0))","v":0},{"$f":"INDEX(ScoreTable, MATCH($C15,ConditionalityList,0), MATCH(_configuration!AB14,WeightList,0))","v":0}]
[13,{"$f":"_configuration!B15","v":"Les abeilles mellifères et les abeilles sauvages ne sont pas actives dans les cultures à traiter avec le pesticide mais elles le sont hors champ."},{"$f":"IF(ISBLANK('Input Evaluation of Conditions'!C15),99,'Input Evaluation of Conditions'!C15*_configuration!C15)","v":99},{"$f":"INDEX(ScoreTable, MATCH($C16,ConditionalityList,0), MATCH(_configuration!D15,WeightList,0))","v":0},{"$f":"INDEX(ScoreTable, MATCH($C16,ConditionalityList,0), MATCH(_configuration!E15,WeightList,0))","v":0},{"$f":"INDEX(ScoreTable, MATCH($C16,ConditionalityList,0), MATCH(_configuration!F15,WeightList,0))","v":0},{"$f":"INDEX(ScoreTable, MATCH($C16,ConditionalityList,0), MATCH(_configuration!G15,WeightList,0))","v":0},{"$f":"INDEX(ScoreTable, MATCH($C16,ConditionalityList,0), MATCH(_configuration!H15,WeightList,0))","v":0},{"$f":"INDEX(ScoreTable, MATCH($C16,ConditionalityList,0), MATCH(_configuration!I15,WeightList,0))","v":0},{"$f":"INDEX(ScoreTable, MATCH($C16,ConditionalityList,0), MATCH(_configuration!J15,WeightList,0))","v":0},{"$f":"INDEX(ScoreTable, MATCH($C16,ConditionalityList,0), MATCH(_configuration!K15,WeightList,0))","v":0},{"$f":"INDEX(ScoreTable, MATCH($C16,ConditionalityList,0), MATCH(_configuration!L15,WeightList,0))","v":0},{"$f":"INDEX(ScoreTable, MATCH($C16,ConditionalityList,0), MATCH(_configuration!M15,WeightList,0))","v":0},{"$f":"INDEX(ScoreTable, MATCH($C16,ConditionalityList,0), MATCH(_configuration!N15,WeightList,0))","v":0},{"$f":"INDEX(ScoreTable, MATCH($C16,ConditionalityList,0), MATCH(_configuration!O15,WeightList,0))","v":0},{"$f":"INDEX(ScoreTable, MATCH($C16,ConditionalityList,0), MATCH(_configuration!P15,WeightList,0))","v":0},{"$f":"INDEX(ScoreTable, MATCH($C16,ConditionalityList,0), MATCH(_configuration!Q15,WeightList,0))","v":0},{"$f":"INDEX(ScoreTable, MATCH($C16,ConditionalityList,0), MATCH(_configuration!R15,WeightList,0))","v":0},{"$f":"INDEX(ScoreTable, MATCH($C16,ConditionalityList,0), MATCH(_configuration!S15,WeightList,0))","v":0},{"$f":"INDEX(ScoreTable, MATCH($C16,ConditionalityList,0), MATCH(_configuration!T15,WeightList,0))","v":0},{"$f":"INDEX(ScoreTable, MATCH($C16,ConditionalityList,0), MATCH(_configuration!U15,WeightList,0))","v":0},{"$f":"INDEX(ScoreTable, MATCH($C16,ConditionalityList,0), MATCH(_configuration!V15,WeightList,0))","v":0},{"$f":"INDEX(ScoreTable, MATCH($C16,ConditionalityList,0), MATCH(_configuration!W15,WeightList,0))","v":0},{"$f":"INDEX(ScoreTable, MATCH($C16,ConditionalityList,0), MATCH(_configuration!X15,WeightList,0))","v":0},{"$f":"INDEX(ScoreTable, MATCH($C16,ConditionalityList,0), MATCH(_configuration!Y15,WeightList,0))","v":0},{"$f":"INDEX(ScoreTable, MATCH($C16,ConditionalityList,0), MATCH(_configuration!Z15,WeightList,0))","v":0},{"$f":"INDEX(ScoreTable, MATCH($C16,ConditionalityList,0), MATCH(_configuration!AA15,WeightList,0))","v":0},{"$f":"INDEX(ScoreTable, MATCH($C16,ConditionalityList,0), MATCH(_configuration!AB15,WeightList,0))","v":0}]
[14,{"$f":"_configuration!B16","v":"Les champs sont suffisamment grands et donc l’introduction d’une bande tampon de non-pulvérisation n’aura pas d’effet inacceptable sur le rendement."},{"$f":"IF(ISBLANK('Input Evaluation of Conditions'!C16),99,'Input Evaluation of Conditions'!C16*_configuration!C16)","v":99},{"$f":"INDEX(ScoreTable, MATCH($C17,ConditionalityList,0), MATCH(_configuration!D16,WeightList,0))","v":0},{"$f":"INDEX(ScoreTable, MATCH($C17,ConditionalityList,0), MATCH(_configuration!E16,WeightList,0))","v":0},{"$f":"INDEX(ScoreTable, MATCH($C17,ConditionalityList,0), MATCH(_configuration!F16,WeightList,0))","v":0},{"$f":"INDEX(ScoreTable, MATCH($C17,ConditionalityList,0), MATCH(_configuration!G16,WeightList,0))","v":0},{"$f":"INDEX(ScoreTable, MATCH($C17,ConditionalityList,0), MATCH(_configuration!H16,WeightList,0))","v":0},{"$f":"INDEX(ScoreTable, MATCH($C17,ConditionalityList,0), MATCH(_configuration!I16,WeightList,0))","v":0},{"$f":"INDEX(ScoreTable, MATCH($C17,ConditionalityList,0), MATCH(_configuration!J16,WeightList,0))","v":0},{"$f":"INDEX(ScoreTable, MATCH($C17,ConditionalityList,0), MATCH(_configuration!K16,WeightList,0))","v":0},{"$f":"INDEX(ScoreTable, MATCH($C17,ConditionalityList,0), MATCH(_configuration!L16,WeightList,0))","v":0},{"$f":"INDEX(ScoreTable, MATCH($C17,ConditionalityList,0), MATCH(_configuration!M16,WeightList,0))","v":0},{"$f":"INDEX(ScoreTable, MATCH($C17,ConditionalityList,0), MATCH(_configuration!N16,WeightList,0))","v":0},{"$f":"INDEX(ScoreTable, MATCH($C17,ConditionalityList,0), MATCH(_configuration!O16,WeightList,0))","v":0},{"$f":"INDEX(ScoreTable, MATCH($C17,ConditionalityList,0), MATCH(_configuration!P16,WeightList,0))","v":0},{"$f":"INDEX(ScoreTable, MATCH($C17,ConditionalityList,0), MATCH(_configuration!Q16,WeightList,0))","v":0},{"$f":"INDEX(ScoreTable, MATCH($C17,ConditionalityList,0), MATCH(_configuration!R16,WeightList,0))","v":0},{"$f":"INDEX(ScoreTable, MATCH($C17,ConditionalityList,0), MATCH(_configuration!S16,WeightList,0))","v":0},{"$f":"INDEX(ScoreTable, MATCH($C17,ConditionalityList,0), MATCH(_configuration!T16,WeightList,0))","v":0},{"$f":"INDEX(ScoreTable, MATCH($C17,ConditionalityList,0), MATCH(_configuration!U16,WeightList,0))","v":0},{"$f":"INDEX(ScoreTable, MATCH($C17,ConditionalityList,0), MATCH(_configuration!V16,WeightList,0))","v":0},{"$f":"INDEX(ScoreTable, MATCH($C17,ConditionalityList,0), MATCH(_configuration!W16,WeightList,0))","v":0},{"$f":"INDEX(ScoreTable, MATCH($C17,ConditionalityList,0), MATCH(_configuration!X16,WeightList,0))","v":0},{"$f":"INDEX(ScoreTable, MATCH($C17,ConditionalityList,0), MATCH(_configuration!Y16,WeightList,0))","v":0},{"$f":"INDEX(ScoreTable, MATCH($C17,ConditionalityList,0), MATCH(_configuration!Z16,WeightList,0))","v":0},{"$f":"INDEX(ScoreTable, MATCH($C17,ConditionalityList,0), MATCH(_configuration!AA16,WeightList,0))","v":0},{"$f":"INDEX(ScoreTable, MATCH($C17,ConditionalityList,0), MATCH(_configuration!AB16,WeightList,0))","v":0}]
[15,{"$f":"_configuration!B17","v":"Les utilisateurs de pesticides sont alphabétisés, ou peuvent demander à une personne alphabétisée dans leurs environs de leur lire l’étiquette du pesticide."},{"$f":"IF(ISBLANK('Input Evaluation of Conditions'!C17),99,'Input Evaluation of Conditions'!C17*_configuration!C17)","v":99},{"$f":"INDEX(ScoreTable, MATCH($C18,ConditionalityList,0), MATCH(_configuration!D17,WeightList,0))","v":0},{"$f":"INDEX(ScoreTable, MATCH($C18,ConditionalityList,0), MATCH(_configuration!E17,WeightList,0))","v":0},{"$f":"INDEX(ScoreTable, MATCH($C18,ConditionalityList,0), MATCH(_configuration!F17,WeightList,0))","v":0},{"$f":"INDEX(ScoreTable, MATCH($C18,ConditionalityList,0), MATCH(_configuration!G17,WeightList,0))","v":0},{"$f":"INDEX(ScoreTable, MATCH($C18,ConditionalityList,0), MATCH(_configuration!H17,WeightList,0))","v":0},{"$f":"INDEX(ScoreTable, MATCH($C18,ConditionalityList,0), MATCH(_configuration!I17,WeightList,0))","v":0},{"$f":"INDEX(ScoreTable, MATCH($C18,ConditionalityList,0), MATCH(_configuration!J17,WeightList,0))","v":0},{"$f":"INDEX(ScoreTable, MATCH($C18,ConditionalityList,0), MATCH(_configuration!K17,WeightList,0))","v":0},{"$f":"INDEX(ScoreTable, MATCH($C18,ConditionalityList,0), MATCH(_configuration!L17,WeightList,0))","v":0},{"$f":"INDEX(ScoreTable, MATCH($C18,ConditionalityList,0), MATCH(_configuration!M17,WeightList,0))","v":0},{"$f":"INDEX(ScoreTable, MATCH($C18,ConditionalityList,0), MATCH(_configuration!N17,WeightList,0))","v":0},{"$f":"INDEX(ScoreTable, MATCH($C18,ConditionalityList,0), MATCH(_configuration!O17,WeightList,0))","v":0},{"$f":"INDEX(ScoreTable, MATCH($C18,ConditionalityList,0), MATCH(_configuration!P17,WeightList,0))","v":0},{"$f":"INDEX(ScoreTable, MATCH($C18,ConditionalityList,0), MATCH(_configuration!Q17,WeightList,0))","v":0},{"$f":"INDEX(ScoreTable, MATCH($C18,ConditionalityList,0), MATCH(_configuration!R17,WeightList,0))","v":0},{"$f":"INDEX(ScoreTable, MATCH($C18,ConditionalityList,0), MATCH(_configuration!S17,WeightList,0))","v":0},{"$f":"INDEX(ScoreTable, MATCH($C18,ConditionalityList,0), MATCH(_configuration!T17,WeightList,0))","v":0},{"$f":"INDEX(ScoreTable, MATCH($C18,ConditionalityList,0), MATCH(_configuration!U17,WeightList,0))","v":0},{"$f":"INDEX(ScoreTable, MATCH($C18,ConditionalityList,0), MATCH(_configuration!V17,WeightList,0))","v":0},{"$f":"INDEX(ScoreTable, MATCH($C18,ConditionalityList,0), MATCH(_configuration!W17,WeightList,0))","v":0},{"$f":"INDEX(ScoreTable, MATCH($C18,ConditionalityList,0), MATCH(_configuration!X17,WeightList,0))","v":0},{"$f":"INDEX(ScoreTable, MATCH($C18,ConditionalityList,0), MATCH(_configuration!Y17,WeightList,0))","v":0},{"$f":"INDEX(ScoreTable, MATCH($C18,ConditionalityList,0), MATCH(_configuration!Z17,WeightList,0))","v":0},{"$f":"INDEX(ScoreTable, MATCH($C18,ConditionalityList,0), MATCH(_configuration!AA17,WeightList,0))","v":0},{"$f":"INDEX(ScoreTable, MATCH($C18,ConditionalityList,0), MATCH(_configuration!AB17,WeightList,0))","v":0}]
[16,{"$f":"_configuration!B18","v":"Les apiculteurs peuvent être efficacement informés à l’avance sur les traitements pesti-cides dans leurs environs."},{"$f":"IF(ISBLANK('Input Evaluation of Conditions'!C18),99,'Input Evaluation of Conditions'!C18*_configuration!C18)","v":99},{"$f":"INDEX(ScoreTable, MATCH($C19,ConditionalityList,0), MATCH(_configuration!D18,WeightList,0))","v":0},{"$f":"INDEX(ScoreTable, MATCH($C19,ConditionalityList,0), MATCH(_configuration!E18,WeightList,0))","v":0},{"$f":"INDEX(ScoreTable, MATCH($C19,ConditionalityList,0), MATCH(_configuration!F18,WeightList,0))","v":0},{"$f":"INDEX(ScoreTable, MATCH($C19,ConditionalityList,0), MATCH(_configuration!G18,WeightList,0))","v":0},{"$f":"INDEX(ScoreTable, MATCH($C19,ConditionalityList,0), MATCH(_configuration!H18,WeightList,0))","v":0},{"$f":"INDEX(ScoreTable, MATCH($C19,ConditionalityList,0), MATCH(_configuration!I18,WeightList,0))","v":0},{"$f":"INDEX(ScoreTable, MATCH($C19,ConditionalityList,0), MATCH(_configuration!J18,WeightList,0))","v":0},{"$f":"INDEX(ScoreTable, MATCH($C19,ConditionalityList,0), MATCH(_configuration!K18,WeightList,0))","v":0},{"$f":"INDEX(ScoreTable, MATCH($C19,ConditionalityList,0), MATCH(_configuration!L18,WeightList,0))","v":0},{"$f":"INDEX(ScoreTable, MATCH($C19,ConditionalityList,0), MATCH(_configuration!M18,WeightList,0))","v":0},{"$f":"INDEX(ScoreTable, MATCH($C19,ConditionalityList,0), MATCH(_configuration!N18,WeightList,0))","v":0},{"$f":"INDEX(ScoreTable, MATCH($C19,ConditionalityList,0), MATCH(_configuration!O18,WeightList,0))","v":0},{"$f":"INDEX(ScoreTable, MATCH($C19,ConditionalityList,0), MATCH(_configuration!P18,WeightList,0))","v":0},{"$f":"INDEX(ScoreTable, MATCH($C19,ConditionalityList,0), MATCH(_configuration!Q18,WeightList,0))","v":0},{"$f":"INDEX(ScoreTable, MATCH($C19,ConditionalityList,0), MATCH(_configuration!R18,WeightList,0))","v":0},{"$f":"INDEX(ScoreTable, MATCH($C19,ConditionalityList,0), MATCH(_configuration!S18,WeightList,0))","v":0},{"$f":"INDEX(ScoreTable, MATCH($C19,ConditionalityList,0), MATCH(_configuration!T18,WeightList,0))","v":0},{"$f":"INDEX(ScoreTable, MATCH($C19,ConditionalityList,0), MATCH(_configuration!U18,WeightList,0))","v":0},{"$f":"INDEX(ScoreTable, MATCH($C19,ConditionalityList,0), MATCH(_configuration!V18,WeightList,0))","v":0},{"$f":"INDEX(ScoreTable, MATCH($C19,ConditionalityList,0), MATCH(_configuration!W18,WeightList,0))","v":0},{"$f":"INDEX(ScoreTable, MATCH($C19,ConditionalityList,0), MATCH(_configuration!X18,WeightList,0))","v":0},{"$f":"INDEX(ScoreTable, MATCH($C19,ConditionalityList,0), MATCH(_configuration!Y18,WeightList,0))","v":0},{"$f":"INDEX(ScoreTable, MATCH($C19,ConditionalityList,0), MATCH(_configuration!Z18,WeightList,0))","v":0},{"$f":"INDEX(ScoreTable, MATCH($C19,ConditionalityList,0), MATCH(_configuration!AA18,WeightList,0))","v":0},{"$f":"INDEX(ScoreTable, MATCH($C19,ConditionalityList,0), MATCH(_configuration!AB18,WeightList,0))","v":0}]
[17,{"$f":"_configuration!B19","v":0},{"$f":"IF(ISBLANK('Input Evaluation of Conditions'!C19),99,'Input Evaluation of Conditions'!C19*_configuration!C19)","v":99},{"$f":"INDEX(ScoreTable, MATCH($C20,ConditionalityList,0), MATCH(_configuration!D19,WeightList,0))","v":0},{"$f":"INDEX(ScoreTable, MATCH($C20,ConditionalityList,0), MATCH(_configuration!E19,WeightList,0))","v":0},{"$f":"INDEX(ScoreTable, MATCH($C20,ConditionalityList,0), MATCH(_configuration!F19,WeightList,0))","v":0},{"$f":"INDEX(ScoreTable, MATCH($C20,ConditionalityList,0), MATCH(_configuration!G19,WeightList,0))","v":0},{"$f":"INDEX(ScoreTable, MATCH($C20,ConditionalityList,0), MATCH(_configuration!H19,WeightList,0))","v":0},{"$f":"INDEX(ScoreTable, MATCH($C20,ConditionalityList,0), MATCH(_configuration!I19,WeightList,0))","v":0},{"$f":"INDEX(ScoreTable, MATCH($C20,ConditionalityList,0), MATCH(_configuration!J19,WeightList,0))","v":0},{"$f":"INDEX(ScoreTable, MATCH($C20,ConditionalityList,0), MATCH(_configuration!K19,WeightList,0))","v":0},{"$f":"INDEX(ScoreTable, MATCH($C20,ConditionalityList,0), MATCH(_configuration!L19,WeightList,0))","v":0},{"$f":"INDEX(ScoreTable, MATCH($C20,ConditionalityList,0), MATCH(_configuration!M19,WeightList,0))","v":0},{"$f":"INDEX(ScoreTable, MATCH($C20,ConditionalityList,0), MATCH(_configuration!N19,WeightList,0))","v":0},{"$f":"INDEX(ScoreTable, MATCH($C20,ConditionalityList,0), MATCH(_configuration!O19,WeightList,0))","v":0},{"$f":"INDEX(ScoreTable, MATCH($C20,ConditionalityList,0), MATCH(_configuration!P19,WeightList,0))","v":0},{"$f":"INDEX(ScoreTable, MATCH($C20,ConditionalityList,0), MATCH(_configuration!Q19,WeightList,0))","v":0},{"$f":"INDEX(ScoreTable, MATCH($C20,ConditionalityList,0), MATCH(_configuration!R19,WeightList,0))","v":0},{"$f":"INDEX(ScoreTable, MATCH($C20,ConditionalityList,0), MATCH(_configuration!S19,WeightList,0))","v":0},{"$f":"INDEX(ScoreTable, MATCH($C20,ConditionalityList,0), MATCH(_configuration!T19,WeightList,0))","v":0},{"$f":"INDEX(ScoreTable, MATCH($C20,ConditionalityList,0), MATCH(_configuration!U19,WeightList,0))","v":0},{"$f":"INDEX(ScoreTable, MATCH($C20,ConditionalityList,0), MATCH(_configuration!V19,WeightList,0))","v":0},{"$f":"INDEX(ScoreTable, MATCH($C20,ConditionalityList,0), MATCH(_configuration!W19,WeightList,0))","v":0},{"$f":"INDEX(ScoreTable, MATCH($C20,ConditionalityList,0), MATCH(_configuration!X19,WeightList,0))","v":0},{"$f":"INDEX(ScoreTable, MATCH($C20,ConditionalityList,0), MATCH(_configuration!Y19,WeightList,0))","v":0},{"$f":"INDEX(ScoreTable, MATCH($C20,ConditionalityList,0), MATCH(_configuration!Z19,WeightList,0))","v":0},{"$f":"INDEX(ScoreTable, MATCH($C20,ConditionalityList,0), MATCH(_configuration!AA19,WeightList,0))","v":0},{"$f":"INDEX(ScoreTable, MATCH($C20,ConditionalityList,0), MATCH(_configuration!AB19,WeightList,0))","v":0}]
[18,{"$f":"_configuration!B20","v":0},{"$f":"IF(ISBLANK('Input Evaluation of Conditions'!C20),99,'Input Evaluation of Conditions'!C20*_configuration!C20)","v":99},{"$f":"INDEX(ScoreTable, MATCH($C21,ConditionalityList,0), MATCH(_configuration!D20,WeightList,0))","v":0},{"$f":"INDEX(ScoreTable, MATCH($C21,ConditionalityList,0), MATCH(_configuration!E20,WeightList,0))","v":0},{"$f":"INDEX(ScoreTable, MATCH($C21,ConditionalityList,0), MATCH(_configuration!F20,WeightList,0))","v":0},{"$f":"INDEX(ScoreTable, MATCH($C21,ConditionalityList,0), MATCH(_configuration!G20,WeightList,0))","v":0},{"$f":"INDEX(ScoreTable, MATCH($C21,ConditionalityList,0), MATCH(_configuration!H20,WeightList,0))","v":0},{"$f":"INDEX(ScoreTable, MATCH($C21,ConditionalityList,0), MATCH(_configuration!I20,WeightList,0))","v":0},{"$f":"INDEX(ScoreTable, MATCH($C21,ConditionalityList,0), MATCH(_configuration!J20,WeightList,0))","v":0},{"$f":"INDEX(ScoreTable, MATCH($C21,ConditionalityList,0), MATCH(_configuration!K20,WeightList,0))","v":0},{"$f":"INDEX(ScoreTable, MATCH($C21,ConditionalityList,0), MATCH(_configuration!L20,WeightList,0))","v":0},{"$f":"INDEX(ScoreTable, MATCH($C21,ConditionalityList,0), MATCH(_configuration!M20,WeightList,0))","v":0},{"$f":"INDEX(ScoreTable, MATCH($C21,ConditionalityList,0), MATCH(_configuration!N20,WeightList,0))","v":0},{"$f":"INDEX(ScoreTable, MATCH($C21,ConditionalityList,0), MATCH(_configuration!O20,WeightList,0))","v":0},{"$f":"INDEX(ScoreTable, MATCH($C21,ConditionalityList,0), MATCH(_configuration!P20,WeightList,0))","v":0},{"$f":"INDEX(ScoreTable, MATCH($C21,ConditionalityList,0), MATCH(_configuration!Q20,WeightList,0))","v":0},{"$f":"INDEX(ScoreTable, MATCH($C21,ConditionalityList,0), MATCH(_configuration!R20,WeightList,0))","v":0},{"$f":"INDEX(ScoreTable, MATCH($C21,ConditionalityList,0), MATCH(_configuration!S20,WeightList,0))","v":0},{"$f":"INDEX(ScoreTable, MATCH($C21,ConditionalityList,0), MATCH(_configuration!T20,WeightList,0))","v":0},{"$f":"INDEX(ScoreTable, MATCH($C21,ConditionalityList,0), MATCH(_configuration!U20,WeightList,0))","v":0},{"$f":"INDEX(ScoreTable, MATCH($C21,ConditionalityList,0), MATCH(_configuration!V20,WeightList,0))","v":0},{"$f":"INDEX(ScoreTable, MATCH($C21,ConditionalityList,0), MATCH(_configuration!W20,WeightList,0))","v":0},{"$f":"INDEX(ScoreTable, MATCH($C21,ConditionalityList,0), MATCH(_configuration!X20,WeightList,0))","v":0},{"$f":"INDEX(ScoreTable, MATCH($C21,ConditionalityList,0), MATCH(_configuration!Y20,WeightList,0))","v":0},{"$f":"INDEX(ScoreTable, MATCH($C21,ConditionalityList,0), MATCH(_configuration!Z20,WeightList,0))","v":0},{"$f":"INDEX(ScoreTable, MATCH($C21,ConditionalityList,0), MATCH(_configuration!AA20,WeightList,0))","v":0},{"$f":"INDEX(ScoreTable, MATCH($C21,ConditionalityList,0), MATCH(_configuration!AB20,WeightList,0))","v":0}]
[19,{"$f":"_configuration!B21","v":0},{"$f":"IF(ISBLANK('Input Evaluation of Conditions'!C21),99,'Input Evaluation of Conditions'!C21*_configuration!C21)","v":99},{"$f":"INDEX(ScoreTable, MATCH($C22,ConditionalityList,0), MATCH(_configuration!D21,WeightList,0))","v":0},{"$f":"INDEX(ScoreTable, MATCH($C22,ConditionalityList,0), MATCH(_configuration!E21,WeightList,0))","v":0},{"$f":"INDEX(ScoreTable, MATCH($C22,ConditionalityList,0), MATCH(_configuration!F21,WeightList,0))","v":0},{"$f":"INDEX(ScoreTable, MATCH($C22,ConditionalityList,0), MATCH(_configuration!G21,WeightList,0))","v":0},{"$f":"INDEX(ScoreTable, MATCH($C22,ConditionalityList,0), MATCH(_configuration!H21,WeightList,0))","v":0},{"$f":"INDEX(ScoreTable, MATCH($C22,ConditionalityList,0), MATCH(_configuration!I21,WeightList,0))","v":0},{"$f":"INDEX(ScoreTable, MATCH($C22,ConditionalityList,0), MATCH(_configuration!J21,WeightList,0))","v":0},{"$f":"INDEX(ScoreTable, MATCH($C22,ConditionalityList,0), MATCH(_configuration!K21,WeightList,0))","v":0},{"$f":"INDEX(ScoreTable, MATCH($C22,ConditionalityList,0), MATCH(_configuration!L21,WeightList,0))","v":0},{"$f":"INDEX(ScoreTable, MATCH($C22,ConditionalityList,0), MATCH(_configuration!M21,WeightList,0))","v":0},{"$f":"INDEX(ScoreTable, MATCH($C22,ConditionalityList,0), MATCH(_configuration!N21,WeightList,0))","v":0},{"$f":"INDEX(ScoreTable, MATCH($C22,ConditionalityList,0), MATCH(_configuration!O21,WeightList,0))","v":0},{"$f":"INDEX(ScoreTable, MATCH($C22,ConditionalityList,0), MATCH(_configuration!P21,WeightList,0))","v":0},{"$f":"INDEX(ScoreTable, MATCH($C22,ConditionalityList,0), MATCH(_configuration!Q21,WeightList,0))","v":0},{"$f":"INDEX(ScoreTable, MATCH($C22,ConditionalityList,0), MATCH(_configuration!R21,WeightList,0))","v":0},{"$f":"INDEX(ScoreTable, MATCH($C22,ConditionalityList,0), MATCH(_configuration!S21,WeightList,0))","v":0},{"$f":"INDEX(ScoreTable, MATCH($C22,ConditionalityList,0), MATCH(_configuration!T21,WeightList,0))","v":0},{"$f":"INDEX(ScoreTable, MATCH($C22,ConditionalityList,0), MATCH(_configuration!U21,WeightList,0))","v":0},{"$f":"INDEX(ScoreTable, MATCH($C22,ConditionalityList,0), MATCH(_configuration!V21,WeightList,0))","v":0},{"$f":"INDEX(ScoreTable, MATCH($C22,ConditionalityList,0), MATCH(_configuration!W21,WeightList,0))","v":0},{"$f":"INDEX(ScoreTable, MATCH($C22,ConditionalityList,0), MATCH(_configuration!X21,WeightList,0))","v":0},{"$f":"INDEX(ScoreTable, MATCH($C22,ConditionalityList,0), MATCH(_configuration!Y21,WeightList,0))","v":0},{"$f":"INDEX(ScoreTable, MATCH($C22,ConditionalityList,0), MATCH(_configuration!Z21,WeightList,0))","v":0},{"$f":"INDEX(ScoreTable, MATCH($C22,ConditionalityList,0), MATCH(_configuration!AA21,WeightList,0))","v":0},{"$f":"INDEX(ScoreTable, MATCH($C22,ConditionalityList,0), MATCH(_configuration!AB21,WeightList,0))","v":0}]
[20,{"$f":"_configuration!B22","v":0},{"$f":"IF(ISBLANK('Input Evaluation of Conditions'!C22),99,'Input Evaluation of Conditions'!C22*_configuration!C22)","v":99},{"$f":"INDEX(ScoreTable, MATCH($C23,ConditionalityList,0), MATCH(_configuration!D22,WeightList,0))","v":0},{"$f":"INDEX(ScoreTable, MATCH($C23,ConditionalityList,0), MATCH(_configuration!E22,WeightList,0))","v":0},{"$f":"INDEX(ScoreTable, MATCH($C23,ConditionalityList,0), MATCH(_configuration!F22,WeightList,0))","v":0},{"$f":"INDEX(ScoreTable, MATCH($C23,ConditionalityList,0), MATCH(_configuration!G22,WeightList,0))","v":0},{"$f":"INDEX(ScoreTable, MATCH($C23,ConditionalityList,0), MATCH(_configuration!H22,WeightList,0))","v":0},{"$f":"INDEX(ScoreTable, MATCH($C23,ConditionalityList,0), MATCH(_configuration!I22,WeightList,0))","v":0},{"$f":"INDEX(ScoreTable, MATCH($C23,ConditionalityList,0), MATCH(_configuration!J22,WeightList,0))","v":0},{"$f":"INDEX(ScoreTable, MATCH($C23,ConditionalityList,0), MATCH(_configuration!K22,WeightList,0))","v":0},{"$f":"INDEX(ScoreTable, MATCH($C23,ConditionalityList,0), MATCH(_configuration!L22,WeightList,0))","v":0},{"$f":"INDEX(ScoreTable, MATCH($C23,ConditionalityList,0), MATCH(_configuration!M22,WeightList,0))","v":0},{"$f":"INDEX(ScoreTable, MATCH($C23,ConditionalityList,0), MATCH(_configuration!N22,WeightList,0))","v":0},{"$f":"INDEX(ScoreTable, MATCH($C23,ConditionalityList,0), MATCH(_configuration!O22,WeightList,0))","v":0},{"$f":"INDEX(ScoreTable, MATCH($C23,ConditionalityList,0), MATCH(_configuration!P22,WeightList,0))","v":0},{"$f":"INDEX(ScoreTable, MATCH($C23,ConditionalityList,0), MATCH(_configuration!Q22,WeightList,0))","v":0},{"$f":"INDEX(ScoreTable, MATCH($C23,ConditionalityList,0), MATCH(_configuration!R22,WeightList,0))","v":0},{"$f":"INDEX(ScoreTable, MATCH($C23,ConditionalityList,0), MATCH(_configuration!S22,WeightList,0))","v":0},{"$f":"INDEX(ScoreTable, MATCH($C23,ConditionalityList,0), MATCH(_configuration!T22,WeightList,0))","v":0},{"$f":"INDEX(ScoreTable, MATCH($C23,ConditionalityList,0), MATCH(_configuration!U22,WeightList,0))","v":0},{"$f":"INDEX(ScoreTable, MATCH($C23,ConditionalityList,0), MATCH(_configuration!V22,WeightList,0))","v":0},{"$f":"INDEX(ScoreTable, MATCH($C23,ConditionalityList,0), MATCH(_configuration!W22,WeightList,0))","v":0},{"$f":"INDEX(ScoreTable, MATCH($C23,ConditionalityList,0), MATCH(_configuration!X22,WeightList,0))","v":0},{"$f":"INDEX(ScoreTable, MATCH($C23,ConditionalityList,0), MATCH(_configuration!Y22,WeightList,0))","v":0},{"$f":"INDEX(ScoreTable, MATCH($C23,ConditionalityList,0), MATCH(_configuration!Z22,WeightList,0))","v":0},{"$f":"INDEX(ScoreTable, MATCH($C23,ConditionalityList,0), MATCH(_configuration!AA22,WeightList,0))","v":0},{"$f":"INDEX(ScoreTable, MATCH($C23,ConditionalityList,0), MATCH(_configuration!AB22,WeightList,0))","v":0}]
[21,{"$f":"_configuration!B23","v":0},{"$f":"IF(ISBLANK('Input Evaluation of Conditions'!C23),99,'Input Evaluation of Conditions'!C23*_configuration!C23)","v":99},{"$f":"INDEX(ScoreTable, MATCH($C24,ConditionalityList,0), MATCH(_configuration!D23,WeightList,0))","v":0},{"$f":"INDEX(ScoreTable, MATCH($C24,ConditionalityList,0), MATCH(_configuration!E23,WeightList,0))","v":0},{"$f":"INDEX(ScoreTable, MATCH($C24,ConditionalityList,0), MATCH(_configuration!F23,WeightList,0))","v":0},{"$f":"INDEX(ScoreTable, MATCH($C24,ConditionalityList,0), MATCH(_configuration!G23,WeightList,0))","v":0},{"$f":"INDEX(ScoreTable, MATCH($C24,ConditionalityList,0), MATCH(_configuration!H23,WeightList,0))","v":0},{"$f":"INDEX(ScoreTable, MATCH($C24,ConditionalityList,0), MATCH(_configuration!I23,WeightList,0))","v":0},{"$f":"INDEX(ScoreTable, MATCH($C24,ConditionalityList,0), MATCH(_configuration!J23,WeightList,0))","v":0},{"$f":"INDEX(ScoreTable, MATCH($C24,ConditionalityList,0), MATCH(_configuration!K23,WeightList,0))","v":0},{"$f":"INDEX(ScoreTable, MATCH($C24,ConditionalityList,0), MATCH(_configuration!L23,WeightList,0))","v":0},{"$f":"INDEX(ScoreTable, MATCH($C24,ConditionalityList,0), MATCH(_configuration!M23,WeightList,0))","v":0},{"$f":"INDEX(ScoreTable, MATCH($C24,ConditionalityList,0), MATCH(_configuration!N23,WeightList,0))","v":0},{"$f":"INDEX(ScoreTable, MATCH($C24,ConditionalityList,0), MATCH(_configuration!O23,WeightList,0))","v":0},{"$f":"INDEX(ScoreTable, MATCH($C24,ConditionalityList,0), MATCH(_configuration!P23,WeightList,0))","v":0},{"$f":"INDEX(ScoreTable, MATCH($C24,ConditionalityList,0), MATCH(_configuration!Q23,WeightList,0))","v":0},{"$f":"INDEX(ScoreTable, MATCH($C24,ConditionalityList,0), MATCH(_configuration!R23,WeightList,0))","v":0},{"$f":"INDEX(ScoreTable, MATCH($C24,ConditionalityList,0), MATCH(_configuration!S23,WeightList,0))","v":0},{"$f":"INDEX(ScoreTable, MATCH($C24,ConditionalityList,0), MATCH(_configuration!T23,WeightList,0))","v":0},{"$f":"INDEX(ScoreTable, MATCH($C24,ConditionalityList,0), MATCH(_configuration!U23,WeightList,0))","v":0},{"$f":"INDEX(ScoreTable, MATCH($C24,ConditionalityList,0), MATCH(_configuration!V23,WeightList,0))","v":0},{"$f":"INDEX(ScoreTable, MATCH($C24,ConditionalityList,0), MATCH(_configuration!W23,WeightList,0))","v":0},{"$f":"INDEX(ScoreTable, MATCH($C24,ConditionalityList,0), MATCH(_configuration!X23,WeightList,0))","v":0},{"$f":"INDEX(ScoreTable, MATCH($C24,ConditionalityList,0), MATCH(_configuration!Y23,WeightList,0))","v":0},{"$f":"INDEX(ScoreTable, MATCH($C24,ConditionalityList,0), MATCH(_configuration!Z23,WeightList,0))","v":0},{"$f":"INDEX(ScoreTable, MATCH($C24,ConditionalityList,0), MATCH(_configuration!AA23,WeightList,0))","v":0},{"$f":"INDEX(ScoreTable, MATCH($C24,ConditionalityList,0), MATCH(_configuration!AB23,WeightList,0))","v":0}]
[22,{"$f":"_configuration!B24","v":0},{"$f":"IF(ISBLANK('Input Evaluation of Conditions'!C24),99,'Input Evaluation of Conditions'!C24*_configuration!C24)","v":99},{"$f":"INDEX(ScoreTable, MATCH($C25,ConditionalityList,0), MATCH(_configuration!D24,WeightList,0))","v":0},{"$f":"INDEX(ScoreTable, MATCH($C25,ConditionalityList,0), MATCH(_configuration!E24,WeightList,0))","v":0},{"$f":"INDEX(ScoreTable, MATCH($C25,ConditionalityList,0), MATCH(_configuration!F24,WeightList,0))","v":0},{"$f":"INDEX(ScoreTable, MATCH($C25,ConditionalityList,0), MATCH(_configuration!G24,WeightList,0))","v":0},{"$f":"INDEX(ScoreTable, MATCH($C25,ConditionalityList,0), MATCH(_configuration!H24,WeightList,0))","v":0},{"$f":"INDEX(ScoreTable, MATCH($C25,ConditionalityList,0), MATCH(_configuration!I24,WeightList,0))","v":0},{"$f":"INDEX(ScoreTable, MATCH($C25,ConditionalityList,0), MATCH(_configuration!J24,WeightList,0))","v":0},{"$f":"INDEX(ScoreTable, MATCH($C25,ConditionalityList,0), MATCH(_configuration!K24,WeightList,0))","v":0},{"$f":"INDEX(ScoreTable, MATCH($C25,ConditionalityList,0), MATCH(_configuration!L24,WeightList,0))","v":0},{"$f":"INDEX(ScoreTable, MATCH($C25,ConditionalityList,0), MATCH(_configuration!M24,WeightList,0))","v":0},{"$f":"INDEX(ScoreTable, MATCH($C25,ConditionalityList,0), MATCH(_configuration!N24,WeightList,0))","v":0},{"$f":"INDEX(ScoreTable, MATCH($C25,ConditionalityList,0), MATCH(_configuration!O24,WeightList,0))","v":0},{"$f":"INDEX(ScoreTable, MATCH($C25,ConditionalityList,0), MATCH(_configuration!P24,WeightList,0))","v":0},{"$f":"INDEX(ScoreTable, MATCH($C25,ConditionalityList,0), MATCH(_configuration!Q24,WeightList,0))","v":0},{"$f":"INDEX(ScoreTable, MATCH($C25,ConditionalityList,0), MATCH(_configuration!R24,WeightList,0))","v":0},{"$f":"INDEX(ScoreTable, MATCH($C25,ConditionalityList,0), MATCH(_configuration!S24,WeightList,0))","v":0},{"$f":"INDEX(ScoreTable, MATCH($C25,ConditionalityList,0), MATCH(_configuration!T24,WeightList,0))","v":0},{"$f":"INDEX(ScoreTable, MATCH($C25,ConditionalityList,0), MATCH(_configuration!U24,WeightList,0))","v":0},{"$f":"INDEX(ScoreTable, MATCH($C25,ConditionalityList,0), MATCH(_configuration!V24,WeightList,0))","v":0},{"$f":"INDEX(ScoreTable, MATCH($C25,ConditionalityList,0), MATCH(_configuration!W24,WeightList,0))","v":0},{"$f":"INDEX(ScoreTable, MATCH($C25,ConditionalityList,0), MATCH(_configuration!X24,WeightList,0))","v":0},{"$f":"INDEX(ScoreTable, MATCH($C25,ConditionalityList,0), MATCH(_configuration!Y24,WeightList,0))","v":0},{"$f":"INDEX(ScoreTable, MATCH($C25,ConditionalityList,0), MATCH(_configuration!Z24,WeightList,0))","v":0},{"$f":"INDEX(ScoreTable, MATCH($C25,ConditionalityList,0), MATCH(_configuration!AA24,WeightList,0))","v":0},{"$f":"INDEX(ScoreTable, MATCH($C25,ConditionalityList,0), MATCH(_configuration!AB24,WeightList,0))","v":0}]
[23,{"$f":"_configuration!B25","v":0},{"$f":"IF(ISBLANK('Input Evaluation of Conditions'!C25),99,'Input Evaluation of Conditions'!C25*_configuration!C25)","v":99},{"$f":"INDEX(ScoreTable, MATCH($C26,ConditionalityList,0), MATCH(_configuration!D25,WeightList,0))","v":0},{"$f":"INDEX(ScoreTable, MATCH($C26,ConditionalityList,0), MATCH(_configuration!E25,WeightList,0))","v":0},{"$f":"INDEX(ScoreTable, MATCH($C26,ConditionalityList,0), MATCH(_configuration!F25,WeightList,0))","v":0},{"$f":"INDEX(ScoreTable, MATCH($C26,ConditionalityList,0), MATCH(_configuration!G25,WeightList,0))","v":0},{"$f":"INDEX(ScoreTable, MATCH($C26,ConditionalityList,0), MATCH(_configuration!H25,WeightList,0))","v":0},{"$f":"INDEX(ScoreTable, MATCH($C26,ConditionalityList,0), MATCH(_configuration!I25,WeightList,0))","v":0},{"$f":"INDEX(ScoreTable, MATCH($C26,ConditionalityList,0), MATCH(_configuration!J25,WeightList,0))","v":0},{"$f":"INDEX(ScoreTable, MATCH($C26,ConditionalityList,0), MATCH(_configuration!K25,WeightList,0))","v":0},{"$f":"INDEX(ScoreTable, MATCH($C26,ConditionalityList,0), MATCH(_configuration!L25,WeightList,0))","v":0},{"$f":"INDEX(ScoreTable, MATCH($C26,ConditionalityList,0), MATCH(_configuration!M25,WeightList,0))","v":0},{"$f":"INDEX(ScoreTable, MATCH($C26,ConditionalityList,0), MATCH(_configuration!N25,WeightList,0))","v":0},{"$f":"INDEX(ScoreTable, MATCH($C26,ConditionalityList,0), MATCH(_configuration!O25,WeightList,0))","v":0},{"$f":"INDEX(ScoreTable, MATCH($C26,ConditionalityList,0), MATCH(_configuration!P25,WeightList,0))","v":0},{"$f":"INDEX(ScoreTable, MATCH($C26,ConditionalityList,0), MATCH(_configuration!Q25,WeightList,0))","v":0},{"$f":"INDEX(ScoreTable, MATCH($C26,ConditionalityList,0), MATCH(_configuration!R25,WeightList,0))","v":0},{"$f":"INDEX(ScoreTable, MATCH($C26,ConditionalityList,0), MATCH(_configuration!S25,WeightList,0))","v":0},{"$f":"INDEX(ScoreTable, MATCH($C26,ConditionalityList,0), MATCH(_configuration!T25,WeightList,0))","v":0},{"$f":"INDEX(ScoreTable, MATCH($C26,ConditionalityList,0), MATCH(_configuration!U25,WeightList,0))","v":0},{"$f":"INDEX(ScoreTable, MATCH($C26,ConditionalityList,0), MATCH(_configuration!V25,WeightList,0))","v":0},{"$f":"INDEX(ScoreTable, MATCH($C26,ConditionalityList,0), MATCH(_configuration!W25,WeightList,0))","v":0},{"$f":"INDEX(ScoreTable, MATCH($C26,ConditionalityList,0), MATCH(_configuration!X25,WeightList,0))","v":0},{"$f":"INDEX(ScoreTable, MATCH($C26,ConditionalityList,0), MATCH(_configuration!Y25,WeightList,0))","v":0},{"$f":"INDEX(ScoreTable, MATCH($C26,ConditionalityList,0), MATCH(_configuration!Z25,WeightList,0))","v":0},{"$f":"INDEX(ScoreTable, MATCH($C26,ConditionalityList,0), MATCH(_configuration!AA25,WeightList,0))","v":0},{"$f":"INDEX(ScoreTable, MATCH($C26,ConditionalityList,0), MATCH(_configuration!AB25,WeightList,0))","v":0}]
[24,{"$f":"_configuration!B26","v":0},{"$f":"IF(ISBLANK('Input Evaluation of Conditions'!C26),99,'Input Evaluation of Conditions'!C26*_configuration!C26)","v":99},{"$f":"INDEX(ScoreTable, MATCH($C27,ConditionalityList,0), MATCH(_configuration!D26,WeightList,0))","v":0},{"$f":"INDEX(ScoreTable, MATCH($C27,ConditionalityList,0), MATCH(_configuration!E26,WeightList,0))","v":0},{"$f":"INDEX(ScoreTable, MATCH($C27,ConditionalityList,0), MATCH(_configuration!F26,WeightList,0))","v":0},{"$f":"INDEX(ScoreTable, MATCH($C27,ConditionalityList,0), MATCH(_configuration!G26,WeightList,0))","v":0},{"$f":"INDEX(ScoreTable, MATCH($C27,ConditionalityList,0), MATCH(_configuration!H26,WeightList,0))","v":0},{"$f":"INDEX(ScoreTable, MATCH($C27,ConditionalityList,0), MATCH(_configuration!I26,WeightList,0))","v":0},{"$f":"INDEX(ScoreTable, MATCH($C27,ConditionalityList,0), MATCH(_configuration!J26,WeightList,0))","v":0},{"$f":"INDEX(ScoreTable, MATCH($C27,ConditionalityList,0), MATCH(_configuration!K26,WeightList,0))","v":0},{"$f":"INDEX(ScoreTable, MATCH($C27,ConditionalityList,0), MATCH(_configuration!L26,WeightList,0))","v":0},{"$f":"INDEX(ScoreTable, MATCH($C27,ConditionalityList,0), MATCH(_configuration!M26,WeightList,0))","v":0},{"$f":"INDEX(ScoreTable, MATCH($C27,ConditionalityList,0), MATCH(_configuration!N26,WeightList,0))","v":0},{"$f":"INDEX(ScoreTable, MATCH($C27,ConditionalityList,0), MATCH(_configuration!O26,WeightList,0))","v":0},{"$f":"INDEX(ScoreTable, MATCH($C27,ConditionalityList,0), MATCH(_configuration!P26,WeightList,0))","v":0},{"$f":"INDEX(ScoreTable, MATCH($C27,ConditionalityList,0), MATCH(_configuration!Q26,WeightList,0))","v":0},{"$f":"INDEX(ScoreTable, MATCH($C27,ConditionalityList,0), MATCH(_configuration!R26,WeightList,0))","v":0},{"$f":"INDEX(ScoreTable, MATCH($C27,ConditionalityList,0), MATCH(_configuration!S26,WeightList,0))","v":0},{"$f":"INDEX(ScoreTable, MATCH($C27,ConditionalityList,0), MATCH(_configuration!T26,WeightList,0))","v":0},{"$f":"INDEX(ScoreTable, MATCH($C27,ConditionalityList,0), MATCH(_configuration!U26,WeightList,0))","v":0},{"$f":"INDEX(ScoreTable, MATCH($C27,ConditionalityList,0), MATCH(_configuration!V26,WeightList,0))","v":0},{"$f":"INDEX(ScoreTable, MATCH($C27,ConditionalityList,0), MATCH(_configuration!W26,WeightList,0))","v":0},{"$f":"INDEX(ScoreTable, MATCH($C27,ConditionalityList,0), MATCH(_configuration!X26,WeightList,0))","v":0},{"$f":"INDEX(ScoreTable, MATCH($C27,ConditionalityList,0), MATCH(_configuration!Y26,WeightList,0))","v":0},{"$f":"INDEX(ScoreTable, MATCH($C27,ConditionalityList,0), MATCH(_configuration!Z26,WeightList,0))","v":0},{"$f":"INDEX(ScoreTable, MATCH($C27,ConditionalityList,0), MATCH(_configuration!AA26,WeightList,0))","v":0},{"$f":"INDEX(ScoreTable, MATCH($C27,ConditionalityList,0), MATCH(_configuration!AB26,WeightList,0))","v":0}]
[25,{"$f":"_configuration!B27","v":0},{"$f":"IF(ISBLANK('Input Evaluation of Conditions'!C27),99,'Input Evaluation of Conditions'!C27*_configuration!C27)","v":99},{"$f":"INDEX(ScoreTable, MATCH($C28,ConditionalityList,0), MATCH(_configuration!D27,WeightList,0))","v":0},{"$f":"INDEX(ScoreTable, MATCH($C28,ConditionalityList,0), MATCH(_configuration!E27,WeightList,0))","v":0},{"$f":"INDEX(ScoreTable, MATCH($C28,ConditionalityList,0), MATCH(_configuration!F27,WeightList,0))","v":0},{"$f":"INDEX(ScoreTable, MATCH($C28,ConditionalityList,0), MATCH(_configuration!G27,WeightList,0))","v":0},{"$f":"INDEX(ScoreTable, MATCH($C28,ConditionalityList,0), MATCH(_configuration!H27,WeightList,0))","v":0},{"$f":"INDEX(ScoreTable, MATCH($C28,ConditionalityList,0), MATCH(_configuration!I27,WeightList,0))","v":0},{"$f":"INDEX(ScoreTable, MATCH($C28,ConditionalityList,0), MATCH(_configuration!J27,WeightList,0))","v":0},{"$f":"INDEX(ScoreTable, MATCH($C28,ConditionalityList,0), MATCH(_configuration!K27,WeightList,0))","v":0},{"$f":"INDEX(ScoreTable, MATCH($C28,ConditionalityList,0), MATCH(_configuration!L27,WeightList,0))","v":0},{"$f":"INDEX(ScoreTable, MATCH($C28,ConditionalityList,0), MATCH(_configuration!M27,WeightList,0))","v":0},{"$f":"INDEX(ScoreTable, MATCH($C28,ConditionalityList,0), MATCH(_configuration!N27,WeightList,0))","v":0},{"$f":"INDEX(ScoreTable, MATCH($C28,ConditionalityList,0), MATCH(_configuration!O27,WeightList,0))","v":0},{"$f":"INDEX(ScoreTable, MATCH($C28,ConditionalityList,0), MATCH(_configuration!P27,WeightList,0))","v":0},{"$f":"INDEX(ScoreTable, MATCH($C28,ConditionalityList,0), MATCH(_configuration!Q27,WeightList,0))","v":0},{"$f":"INDEX(ScoreTable, MATCH($C28,ConditionalityList,0), MATCH(_configuration!R27,WeightList,0))","v":0},{"$f":"INDEX(ScoreTable, MATCH($C28,ConditionalityList,0), MATCH(_configuration!S27,WeightList,0))","v":0},{"$f":"INDEX(ScoreTable, MATCH($C28,ConditionalityList,0), MATCH(_configuration!T27,WeightList,0))","v":0},{"$f":"INDEX(ScoreTable, MATCH($C28,ConditionalityList,0), MATCH(_configuration!U27,WeightList,0))","v":0},{"$f":"INDEX(ScoreTable, MATCH($C28,ConditionalityList,0), MATCH(_configuration!V27,WeightList,0))","v":0},{"$f":"INDEX(ScoreTable, MATCH($C28,ConditionalityList,0), MATCH(_configuration!W27,WeightList,0))","v":0},{"$f":"INDEX(ScoreTable, MATCH($C28,ConditionalityList,0), MATCH(_configuration!X27,WeightList,0))","v":0},{"$f":"INDEX(ScoreTable, MATCH($C28,ConditionalityList,0), MATCH(_configuration!Y27,WeightList,0))","v":0},{"$f":"INDEX(ScoreTable, MATCH($C28,ConditionalityList,0), MATCH(_configuration!Z27,WeightList,0))","v":0},{"$f":"INDEX(ScoreTable, MATCH($C28,ConditionalityList,0), MATCH(_configuration!AA27,WeightList,0))","v":0},{"$f":"INDEX(ScoreTable, MATCH($C28,ConditionalityList,0), MATCH(_configuration!AB27,WeightList,0))","v":0}]
[26,{"$f":"_configuration!B28","v":0},{"$f":"IF(ISBLANK('Input Evaluation of Conditions'!C28),99,'Input Evaluation of Conditions'!C28*_configuration!C28)","v":99},{"$f":"INDEX(ScoreTable, MATCH($C29,ConditionalityList,0), MATCH(_configuration!D28,WeightList,0))","v":0},{"$f":"INDEX(ScoreTable, MATCH($C29,ConditionalityList,0), MATCH(_configuration!E28,WeightList,0))","v":0},{"$f":"INDEX(ScoreTable, MATCH($C29,ConditionalityList,0), MATCH(_configuration!F28,WeightList,0))","v":0},{"$f":"INDEX(ScoreTable, MATCH($C29,ConditionalityList,0), MATCH(_configuration!G28,WeightList,0))","v":0},{"$f":"INDEX(ScoreTable, MATCH($C29,ConditionalityList,0), MATCH(_configuration!H28,WeightList,0))","v":0},{"$f":"INDEX(ScoreTable, MATCH($C29,ConditionalityList,0), MATCH(_configuration!I28,WeightList,0))","v":0},{"$f":"INDEX(ScoreTable, MATCH($C29,ConditionalityList,0), MATCH(_configuration!J28,WeightList,0))","v":0},{"$f":"INDEX(ScoreTable, MATCH($C29,ConditionalityList,0), MATCH(_configuration!K28,WeightList,0))","v":0},{"$f":"INDEX(ScoreTable, MATCH($C29,ConditionalityList,0), MATCH(_configuration!L28,WeightList,0))","v":0},{"$f":"INDEX(ScoreTable, MATCH($C29,ConditionalityList,0), MATCH(_configuration!M28,WeightList,0))","v":0},{"$f":"INDEX(ScoreTable, MATCH($C29,ConditionalityList,0), MATCH(_configuration!N28,WeightList,0))","v":0},{"$f":"INDEX(ScoreTable, MATCH($C29,ConditionalityList,0), MATCH(_configuration!O28,WeightList,0))","v":0},{"$f":"INDEX(ScoreTable, MATCH($C29,ConditionalityList,0), MATCH(_configuration!P28,WeightList,0))","v":0},{"$f":"INDEX(ScoreTable, MATCH($C29,ConditionalityList,0), MATCH(_configuration!Q28,WeightList,0))","v":0},{"$f":"INDEX(ScoreTable, MATCH($C29,ConditionalityList,0), MATCH(_configuration!R28,WeightList,0))","v":0},{"$f":"INDEX(ScoreTable, MATCH($C29,ConditionalityList,0), MATCH(_configuration!S28,WeightList,0))","v":0},{"$f":"INDEX(ScoreTable, MATCH($C29,ConditionalityList,0), MATCH(_configuration!T28,WeightList,0))","v":0},{"$f":"INDEX(ScoreTable, MATCH($C29,ConditionalityList,0), MATCH(_configuration!U28,WeightList,0))","v":0},{"$f":"INDEX(ScoreTable, MATCH($C29,ConditionalityList,0), MATCH(_configuration!V28,WeightList,0))","v":0},{"$f":"INDEX(ScoreTable, MATCH($C29,ConditionalityList,0), MATCH(_configuration!W28,WeightList,0))","v":0},{"$f":"INDEX(ScoreTable, MATCH($C29,ConditionalityList,0), MATCH(_configuration!X28,WeightList,0))","v":0},{"$f":"INDEX(ScoreTable, MATCH($C29,ConditionalityList,0), MATCH(_configuration!Y28,WeightList,0))","v":0},{"$f":"INDEX(ScoreTable, MATCH($C29,ConditionalityList,0), MATCH(_configuration!Z28,WeightList,0))","v":0},{"$f":"INDEX(ScoreTable, MATCH($C29,ConditionalityList,0), MATCH(_configuration!AA28,WeightList,0))","v":0},{"$f":"INDEX(ScoreTable, MATCH($C29,ConditionalityList,0), MATCH(_configuration!AB28,WeightList,0))","v":0}]
[27,{"$f":"_configuration!B29","v":0},{"$f":"IF(ISBLANK('Input Evaluation of Conditions'!C29),99,'Input Evaluation of Conditions'!C29*_configuration!C29)","v":99},{"$f":"INDEX(ScoreTable, MATCH($C30,ConditionalityList,0), MATCH(_configuration!D29,WeightList,0))","v":0},{"$f":"INDEX(ScoreTable, MATCH($C30,ConditionalityList,0), MATCH(_configuration!E29,WeightList,0))","v":0},{"$f":"INDEX(ScoreTable, MATCH($C30,ConditionalityList,0), MATCH(_configuration!F29,WeightList,0))","v":0},{"$f":"INDEX(ScoreTable, MATCH($C30,ConditionalityList,0), MATCH(_configuration!G29,WeightList,0))","v":0},{"$f":"INDEX(ScoreTable, MATCH($C30,ConditionalityList,0), MATCH(_configuration!H29,WeightList,0))","v":0},{"$f":"INDEX(ScoreTable, MATCH($C30,ConditionalityList,0), MATCH(_configuration!I29,WeightList,0))","v":0},{"$f":"INDEX(ScoreTable, MATCH($C30,ConditionalityList,0), MATCH(_configuration!J29,WeightList,0))","v":0},{"$f":"INDEX(ScoreTable, MATCH($C30,ConditionalityList,0), MATCH(_configuration!K29,WeightList,0))","v":0},{"$f":"INDEX(ScoreTable, MATCH($C30,ConditionalityList,0), MATCH(_configuration!L29,WeightList,0))","v":0},{"$f":"INDEX(ScoreTable, MATCH($C30,ConditionalityList,0), MATCH(_configuration!M29,WeightList,0))","v":0},{"$f":"INDEX(ScoreTable, MATCH($C30,ConditionalityList,0), MATCH(_configuration!N29,WeightList,0))","v":0},{"$f":"INDEX(ScoreTable, MATCH($C30,ConditionalityList,0), MATCH(_configuration!O29,WeightList,0))","v":0},{"$f":"INDEX(ScoreTable, MATCH($C30,ConditionalityList,0), MATCH(_configuration!P29,WeightList,0))","v":0},{"$f":"INDEX(ScoreTable, MATCH($C30,ConditionalityList,0), MATCH(_configuration!Q29,WeightList,0))","v":0},{"$f":"INDEX(ScoreTable, MATCH($C30,ConditionalityList,0), MATCH(_configuration!R29,WeightList,0))","v":0},{"$f":"INDEX(ScoreTable, MATCH($C30,ConditionalityList,0), MATCH(_configuration!S29,WeightList,0))","v":0},{"$f":"INDEX(ScoreTable, MATCH($C30,ConditionalityList,0), MATCH(_configuration!T29,WeightList,0))","v":0},{"$f":"INDEX(ScoreTable, MATCH($C30,ConditionalityList,0), MATCH(_configuration!U29,WeightList,0))","v":0},{"$f":"INDEX(ScoreTable, MATCH($C30,ConditionalityList,0), MATCH(_configuration!V29,WeightList,0))","v":0},{"$f":"INDEX(ScoreTable, MATCH($C30,ConditionalityList,0), MATCH(_configuration!W29,WeightList,0))","v":0},{"$f":"INDEX(ScoreTable, MATCH($C30,ConditionalityList,0), MATCH(_configuration!X29,WeightList,0))","v":0},{"$f":"INDEX(ScoreTable, MATCH($C30,ConditionalityList,0), MATCH(_configuration!Y29,WeightList,0))","v":0},{"$f":"INDEX(ScoreTable, MATCH($C30,ConditionalityList,0), MATCH(_configuration!Z29,WeightList,0))","v":0},{"$f":"INDEX(ScoreTable, MATCH($C30,ConditionalityList,0), MATCH(_configuration!AA29,WeightList,0))","v":0},{"$f":"INDEX(ScoreTable, MATCH($C30,ConditionalityList,0), MATCH(_configuration!AB29,WeightList,0))","v":0}]
[28,{"$f":"_configuration!B30","v":0},{"$f":"IF(ISBLANK('Input Evaluation of Conditions'!C30),99,'Input Evaluation of Conditions'!C30*_configuration!C30)","v":99},{"$f":"INDEX(ScoreTable, MATCH($C31,ConditionalityList,0), MATCH(_configuration!D30,WeightList,0))","v":0},{"$f":"INDEX(ScoreTable, MATCH($C31,ConditionalityList,0), MATCH(_configuration!E30,WeightList,0))","v":0},{"$f":"INDEX(ScoreTable, MATCH($C31,ConditionalityList,0), MATCH(_configuration!F30,WeightList,0))","v":0},{"$f":"INDEX(ScoreTable, MATCH($C31,ConditionalityList,0), MATCH(_configuration!G30,WeightList,0))","v":0},{"$f":"INDEX(ScoreTable, MATCH($C31,ConditionalityList,0), MATCH(_configuration!H30,WeightList,0))","v":0},{"$f":"INDEX(ScoreTable, MATCH($C31,ConditionalityList,0), MATCH(_configuration!I30,WeightList,0))","v":0},{"$f":"INDEX(ScoreTable, MATCH($C31,ConditionalityList,0), MATCH(_configuration!J30,WeightList,0))","v":0},{"$f":"INDEX(ScoreTable, MATCH($C31,ConditionalityList,0), MATCH(_configuration!K30,WeightList,0))","v":0},{"$f":"INDEX(ScoreTable, MATCH($C31,ConditionalityList,0), MATCH(_configuration!L30,WeightList,0))","v":0},{"$f":"INDEX(ScoreTable, MATCH($C31,ConditionalityList,0), MATCH(_configuration!M30,WeightList,0))","v":0},{"$f":"INDEX(ScoreTable, MATCH($C31,ConditionalityList,0), MATCH(_configuration!N30,WeightList,0))","v":0},{"$f":"INDEX(ScoreTable, MATCH($C31,ConditionalityList,0), MATCH(_configuration!O30,WeightList,0))","v":0},{"$f":"INDEX(ScoreTable, MATCH($C31,ConditionalityList,0), MATCH(_configuration!P30,WeightList,0))","v":0},{"$f":"INDEX(ScoreTable, MATCH($C31,ConditionalityList,0), MATCH(_configuration!Q30,WeightList,0))","v":0},{"$f":"INDEX(ScoreTable, MATCH($C31,ConditionalityList,0), MATCH(_configuration!R30,WeightList,0))","v":0},{"$f":"INDEX(ScoreTable, MATCH($C31,ConditionalityList,0), MATCH(_configuration!S30,WeightList,0))","v":0},{"$f":"INDEX(ScoreTable, MATCH($C31,ConditionalityList,0), MATCH(_configuration!T30,WeightList,0))","v":0},{"$f":"INDEX(ScoreTable, MATCH($C31,ConditionalityList,0), MATCH(_configuration!U30,WeightList,0))","v":0},{"$f":"INDEX(ScoreTable, MATCH($C31,ConditionalityList,0), MATCH(_configuration!V30,WeightList,0))","v":0},{"$f":"INDEX(ScoreTable, MATCH($C31,ConditionalityList,0), MATCH(_configuration!W30,WeightList,0))","v":0},{"$f":"INDEX(ScoreTable, MATCH($C31,ConditionalityList,0), MATCH(_configuration!X30,WeightList,0))","v":0},{"$f":"INDEX(ScoreTable, MATCH($C31,ConditionalityList,0), MATCH(_configuration!Y30,WeightList,0))","v":0},{"$f":"INDEX(ScoreTable, MATCH($C31,ConditionalityList,0), MATCH(_configuration!Z30,WeightList,0))","v":0},{"$f":"INDEX(ScoreTable, MATCH($C31,ConditionalityList,0), MATCH(_configuration!AA30,WeightList,0))","v":0},{"$f":"INDEX(ScoreTable, MATCH($C31,ConditionalityList,0), MATCH(_configuration!AB30,WeightList,0))","v":0}]
[29,{"$f":"_configuration!B31","v":0},{"$f":"IF(ISBLANK('Input Evaluation of Conditions'!C31),99,'Input Evaluation of Conditions'!C31*_configuration!C31)","v":99},{"$f":"INDEX(ScoreTable, MATCH($C32,ConditionalityList,0), MATCH(_configuration!D31,WeightList,0))","v":0},{"$f":"INDEX(ScoreTable, MATCH($C32,ConditionalityList,0), MATCH(_configuration!E31,WeightList,0))","v":0},{"$f":"INDEX(ScoreTable, MATCH($C32,ConditionalityList,0), MATCH(_configuration!F31,WeightList,0))","v":0},{"$f":"INDEX(ScoreTable, MATCH($C32,ConditionalityList,0), MATCH(_configuration!G31,WeightList,0))","v":0},{"$f":"INDEX(ScoreTable, MATCH($C32,ConditionalityList,0), MATCH(_configuration!H31,WeightList,0))","v":0},{"$f":"INDEX(ScoreTable, MATCH($C32,ConditionalityList,0), MATCH(_configuration!I31,WeightList,0))","v":0},{"$f":"INDEX(ScoreTable, MATCH($C32,ConditionalityList,0), MATCH(_configuration!J31,WeightList,0))","v":0},{"$f":"INDEX(ScoreTable, MATCH($C32,ConditionalityList,0), MATCH(_configuration!K31,WeightList,0))","v":0},{"$f":"INDEX(ScoreTable, MATCH($C32,ConditionalityList,0), MATCH(_configuration!L31,WeightList,0))","v":0},{"$f":"INDEX(ScoreTable, MATCH($C32,ConditionalityList,0), MATCH(_configuration!M31,WeightList,0))","v":0},{"$f":"INDEX(ScoreTable, MATCH($C32,ConditionalityList,0), MATCH(_configuration!N31,WeightList,0))","v":0},{"$f":"INDEX(ScoreTable, MATCH($C32,ConditionalityList,0), MATCH(_configuration!O31,WeightList,0))","v":0},{"$f":"INDEX(ScoreTable, MATCH($C32,ConditionalityList,0), MATCH(_configuration!P31,WeightList,0))","v":0},{"$f":"INDEX(ScoreTable, MATCH($C32,ConditionalityList,0), MATCH(_configuration!Q31,WeightList,0))","v":0},{"$f":"INDEX(ScoreTable, MATCH($C32,ConditionalityList,0), MATCH(_configuration!R31,WeightList,0))","v":0},{"$f":"INDEX(ScoreTable, MATCH($C32,ConditionalityList,0), MATCH(_configuration!S31,WeightList,0))","v":0},{"$f":"INDEX(ScoreTable, MATCH($C32,ConditionalityList,0), MATCH(_configuration!T31,WeightList,0))","v":0},{"$f":"INDEX(ScoreTable, MATCH($C32,ConditionalityList,0), MATCH(_configuration!U31,WeightList,0))","v":0},{"$f":"INDEX(ScoreTable, MATCH($C32,ConditionalityList,0), MATCH(_configuration!V31,WeightList,0))","v":0},{"$f":"INDEX(ScoreTable, MATCH($C32,ConditionalityList,0), MATCH(_configuration!W31,WeightList,0))","v":0},{"$f":"INDEX(ScoreTable, MATCH($C32,ConditionalityList,0), MATCH(_configuration!X31,WeightList,0))","v":0},{"$f":"INDEX(ScoreTable, MATCH($C32,ConditionalityList,0), MATCH(_configuration!Y31,WeightList,0))","v":0},{"$f":"INDEX(ScoreTable, MATCH($C32,ConditionalityList,0), MATCH(_configuration!Z31,WeightList,0))","v":0},{"$f":"INDEX(ScoreTable, MATCH($C32,ConditionalityList,0), MATCH(_configuration!AA31,WeightList,0))","v":0},{"$f":"INDEX(ScoreTable, MATCH($C32,ConditionalityList,0), MATCH(_configuration!AB31,WeightList,0))","v":0}]
[30,{"$f":"_configuration!B32","v":0},{"$f":"IF(ISBLANK('Input Evaluation of Conditions'!C32),99,'Input Evaluation of Conditions'!C32*_configuration!C32)","v":99},{"$f":"INDEX(ScoreTable, MATCH($C33,ConditionalityList,0), MATCH(_configuration!D32,WeightList,0))","v":0},{"$f":"INDEX(ScoreTable, MATCH($C33,ConditionalityList,0), MATCH(_configuration!E32,WeightList,0))","v":0},{"$f":"INDEX(ScoreTable, MATCH($C33,ConditionalityList,0), MATCH(_configuration!F32,WeightList,0))","v":0},{"$f":"INDEX(ScoreTable, MATCH($C33,ConditionalityList,0), MATCH(_configuration!G32,WeightList,0))","v":0},{"$f":"INDEX(ScoreTable, MATCH($C33,ConditionalityList,0), MATCH(_configuration!H32,WeightList,0))","v":0},{"$f":"INDEX(ScoreTable, MATCH($C33,ConditionalityList,0), MATCH(_configuration!I32,WeightList,0))","v":0},{"$f":"INDEX(ScoreTable, MATCH($C33,ConditionalityList,0), MATCH(_configuration!J32,WeightList,0))","v":0},{"$f":"INDEX(ScoreTable, MATCH($C33,ConditionalityList,0), MATCH(_configuration!K32,WeightList,0))","v":0},{"$f":"INDEX(ScoreTable, MATCH($C33,ConditionalityList,0), MATCH(_configuration!L32,WeightList,0))","v":0},{"$f":"INDEX(ScoreTable, MATCH($C33,ConditionalityList,0), MATCH(_configuration!M32,WeightList,0))","v":0},{"$f":"INDEX(ScoreTable, MATCH($C33,ConditionalityList,0), MATCH(_configuration!N32,WeightList,0))","v":0},{"$f":"INDEX(ScoreTable, MATCH($C33,ConditionalityList,0), MATCH(_configuration!O32,WeightList,0))","v":0},{"$f":"INDEX(ScoreTable, MATCH($C33,ConditionalityList,0), MATCH(_configuration!P32,WeightList,0))","v":0},{"$f":"INDEX(ScoreTable, MATCH($C33,ConditionalityList,0), MATCH(_configuration!Q32,WeightList,0))","v":0},{"$f":"INDEX(ScoreTable, MATCH($C33,ConditionalityList,0), MATCH(_configuration!R32,WeightList,0))","v":0},{"$f":"INDEX(ScoreTable, MATCH($C33,ConditionalityList,0), MATCH(_configuration!S32,WeightList,0))","v":0},{"$f":"INDEX(ScoreTable, MATCH($C33,ConditionalityList,0), MATCH(_configuration!T32,WeightList,0))","v":0},{"$f":"INDEX(ScoreTable, MATCH($C33,ConditionalityList,0), MATCH(_configuration!U32,WeightList,0))","v":0},{"$f":"INDEX(ScoreTable, MATCH($C33,ConditionalityList,0), MATCH(_configuration!V32,WeightList,0))","v":0},{"$f":"INDEX(ScoreTable, MATCH($C33,ConditionalityList,0), MATCH(_configuration!W32,WeightList,0))","v":0},{"$f":"INDEX(ScoreTable, MATCH($C33,ConditionalityList,0), MATCH(_configuration!X32,WeightList,0))","v":0},{"$f":"INDEX(ScoreTable, MATCH($C33,ConditionalityList,0), MATCH(_configuration!Y32,WeightList,0))","v":0},{"$f":"INDEX(ScoreTable, MATCH($C33,ConditionalityList,0), MATCH(_configuration!Z32,WeightList,0))","v":0},{"$f":"INDEX(ScoreTable, MATCH($C33,ConditionalityList,0), MATCH(_configuration!AA32,WeightList,0))","v":0},{"$f":"INDEX(ScoreTable, MATCH($C33,ConditionalityList,0), MATCH(_configuration!AB32,WeightList,0))","v":0}]
[null,{"$f":"_configuration!B33","v":"end of data = 30 conditions"}]

{"sheet":"_changelog","index":6,"n_rows":24,"n_cols":3,"rows_kept":24,"cut":false,"hidden":false,"merged":[]}
[]
[null,"Dimensions"]
[null,"This sheet is configured for 25 measures x 30 conditions"]
[null,"Each measure can depend on one or more conditions"]
[]
[null,"Conditions"]
[null,"Conditions should be set as a statement that can either be TRUE, FALSE or \"Maybe true / .n.a\""]
[null,"Conditions should preferably be formulated as a affirmative statement in order to avoid double negatives."]
[null,"The affirmative or negative form of the statement does not neccesarily be a affirmation of the measure being possible or not!"]
[null,"Conditions that have a negative relation to the possibility of a measure are marked with -1 in the configuration sheet (which displays as an * behind the statement)"]
[]
[]
[null,"Changelog"]
[]
[null,"2016-12-16","changed sheet matrix to configuration"]
[null,"2016-12-16","Set limits of 25 measures and 30 conditions per sheet."]
[null,"2016-12-19","Updated calculations and scoring value for Feasibility"]
[null,"2016-12-19","Updated the colors for feasibility of conditions"]
[null,"2017-01-24","Updated logic"]
[null,"2017-01-31","Updated the colors for feasibility of conditions"]
[null,"2017-01-31","Adjusted some terminology"]
[null,"2017-02-01","Made adjustments so that essential conditions always have to be TRUE for the measure to be feasible."]
[null,"2017-02-27","Adjusted text for Question 4"]
[null,"2017-06-27","Fixed the looping through the questions and included a ounter \"Question x of y\""]